Workbook

Sheet CastleSkillConfig
A1: ID[csknu] | B1: name[ct] | C1: quality[csn] | D1: qualityType[cn] | E1: type[csn] | F1: attr[csn] | G1: HP[csn] | H1: attack[csn] | I1: spellAttack[csn] | J1: realAttack[csn] | K1: attackRange[cn] | L1: bullet[cn] | M1: attackCD[cn] | N1: attackSpeed[csn] | O1: attackCrit[csn] | P1: critNum[csn] | Q1: defense[csn] | R1: spellDefense[csn] | S1: hurtFrame[cn] | T1: hit[csn] | U1: dodge[csn] | V1: moveSpeed[cn] | W1: skills[cna] | X1: skillCDs[cna] | Y1: posType[cna] | Z1: moreSkill[cna] | AA1: startCD[cn] | AB1: rechargeCD[cn] | AC1: rechargeNum[cn] | AD1: url[ct] | AE1: tip[ct] | AF1: upgrade[csna]
A2: ID区间(7w-8w) | B2: 名称 | C2: 品阶 | D2: 品质 | E2: 类型 | F2: 伤害类型 | G2: 血量 | H2: 攻击力 | I2: 法术攻击力 | J2: 真实攻击力 | K2: 攻击范围 | L2: 子弹id | M2: 攻击cd | N2: 攻击速度 | O2: 攻击暴击率‱ | P2: 暴击倍数‱ | Q2: 防御力 | R2: 法术防御力 | S2: 伤害帧 | T2: 命中‱ | U2: 攻击闪避‱ | V2: 移动速度 | W2: 技能数组 | X2: 技能cd数组 | Y2: 位置类型 | Z2: 多段技能 | AA2: 入场cd | AB2: 充能CD | AC2: 充能容量 | AD2: 技能图标 | AE2: 技能描述 | AF2: 升级消耗
A3: 71001 | B3: t3010 | C3: 0 | D3: 1 | E3: 0 | F3: 1 | G3: 0 | H3: 0 | I3: 20 | J3: 0 | K3: 1400 | L3: 20001 | M3: 3 | N3: 0 | O3: 120 | P3: 15000 | Q3: 0 | R3: 0 | S3: 0 | T3: 0 | U3: 0 | V3: 0 | W3: 0 | X3: 0 | Y3: 0 | Z3: 0 | AA3: 0 | AB3: 8 | AC3: 30 | AD3: shell_01 | AE3: t3020 | AF3: 140001^28|140002^20|130002^2 | AG3: 魔法弓弩
A4: 71002 | B4: t3010 | C4: 0 | D4: 1 | E4: 3 | F4: 1 | G4: 0 | H4: 0 | I4: =I3+2 -> 22 | J4: 0 | K4: 1400 | L4: 20001 | M4: 3 | N4: 0 | O4: 120 | P4: 15000 | Q4: 0 | R4: 0 | S4: 0 | T4: 0 | U4: 0 | V4: 0 | W4: 0 | X4: 0 | Y4: 0 | Z4: 0 | AA4: 0 | AB4: 8 | AC4: 30 | AD4: shell_01 | AE4: t3020 | AF4: 140001^32|140002^23|130002^3
A5: 71003 | B5: t3010 | C5: 0 | D5: 1 | E5: 3 | F5: 1 | G5: 0 | H5: 0 | I5: =I4+2 -> 24 | J5: 0 | K5: 1400 | L5: 20001 | M5: 3 | N5: 0 | O5: 120 | P5: 15000 | Q5: 0 | R5: 0 | S5: 0 | T5: 0 | U5: 0 | V5: 0 | W5: 0 | X5: 0 | Y5: 0 | Z5: 0 | AA5: 0 | AB5: 8 | AC5: 30 | AD5: shell_01 | AE5: t3020 | AF5: 140001^37|140002^26|130002^4
A6: 71004 | B6: t3010 | C6: 0 | D6: 1 | E6: 3 | F6: 1 | G6: 0 | H6: 0 | I6: 26 | J6: 0 | K6: 1400 | L6: 20001 | M6: 3 | N6: 0 | O6: 120 | P6: 15000 | Q6: 0 | R6: 0 | S6: 0 | T6: 0 | U6: 0 | V6: 0 | W6: 0 | X6: 0 | Y6: 0 | Z6: 0 | AA6: 0 | AB6: 8 | AC6: 30 | AD6: shell_01 | AE6: t3020 | AF6: 140001^41|140002^29|130002^5
A7: 71005 | B7: t3010 | C7: 0 | D7: 1 | E7: 3 | F7: 1 | G7: 0 | H7: 0 | I7: 28 | J7: 0 | K7: 1400 | L7: 20001 | M7: 3 | N7: 0 | O7: 120 | P7: 15000 | Q7: 0 | R7: 0 | S7: 0 | T7: 0 | U7: 0 | V7: 0 | W7: 0 | X7: 0 | Y7: 0 | Z7: 0 | AA7: 0 | AB7: 8 | AC7: 30 | AD7: shell_01 | AE7: t3020 | AF7: 140001^45|140002^32|130002^6
A8: 71006 | B8: t3010 | C8: 0 | D8: 1 | E8: 3 | F8: 1 | G8: 0 | H8: 0 | I8: 30 | J8: 0 | K8: 1400 | L8: 20001 | M8: 3 | N8: 0 | O8: 120 | P8: 15000 | Q8: 0 | R8: 0 | S8: 0 | T8: 0 | U8: 0 | V8: 0 | W8: 0 | X8: 0 | Y8: 0 | Z8: 0 | AA8: 0 | AB8: 8 | AC8: 30 | AD8: shell_01 | AE8: t3020 | AF8: 140001^50|140002^35|130002^7
A9: 71007 | B9: t3010 | C9: 0 | D9: 1 | E9: 3 | F9: 1 | G9: 0 | H9: 0 | I9: 32 | J9: 0 | K9: 1400 | L9: 20001 | M9: 3 | N9: 0 | O9: 120 | P9: 15000 | Q9: 0 | R9: 0 | S9: 0 | T9: 0 | U9: 0 | V9: 0 | W9: 0 | X9: 0 | Y9: 0 | Z9: 0 | AA9: 0 | AB9: 8 | AC9: 30 | AD9: shell_01 | AE9: t3020 | AF9: 140001^54|140002^38|130002^8
A10: 71008 | B10: t3010 | C10: 0 | D10: 1 | E10: 3 | F10: 1 | G10: 0 | H10: 0 | I10: 34 | J10: 0 | K10: 1400 | L10: 20001 | M10: 3 | N10: 0 | O10: 120 | P10: 15000 | Q10: 0 | R10: 0 | S10: 0 | T10: 0 | U10: 0 | V10: 0 | W10: 0 | X10: 0 | Y10: 0 | Z10: 0 | AA10: 0 | AB10: 8 | AC10: 30 | AD10: shell_01 | AE10: t3020 | AF10: 140001^58|140002^41|130002^9
A11: 71009 | B11: t3010 | C11: 0 | D11: 1 | E11: 3 | F11: 1 | G11: 0 | H11: 0 | I11: 36 | J11: 0 | K11: 1400 | L11: 20001 | M11: 3 | N11: 0 | O11: 120 | P11: 15000 | Q11: 0 | R11: 0 | S11: 0 | T11: 0 | U11: 0 | V11: 0 | W11: 0 | X11: 0 | Y11: 0 | Z11: 0 | AA11: 0 | AB11: 8 | AC11: 30 | AD11: shell_01 | AE11: t3020 | AF11: 140001^63|140002^44|130002^10
A12: 71010 | B12: t3010 | C12: 0 | D12: 1 | E12: 3 | F12: 1 | G12: 0 | H12: 0 | I12: 38 | J12: 0 | K12: 1400 | L12: 20001 | M12: 3 | N12: 0 | O12: 120 | P12: 15000 | Q12: 0 | R12: 0 | S12: 0 | T12: 0 | U12: 0 | V12: 0 | W12: 0 | X12: 0 | Y12: 0 | Z12: 0 | AA12: 0 | AB12: 8 | AC12: 30 | AD12: shell_01 | AE12: t3020 | AF12: 140001^67|140002^47|130002^11
A13: 71011 | B13: t3010 | C13: 0 | D13: 1 | E13: 3 | F13: 1 | G13: 0 | H13: 0 | I13: =I12+3 -> 41 | J13: 0 | K13: 1400 | L13: 20001 | M13: 2.5 | N13: 0 | O13: 120 | P13: 15000 | Q13: 0 | R13: 0 | S13: 0 | T13: 0 | U13: 0 | V13: 0 | W13: 0 | X13: 0 | Y13: 0 | Z13: 0 | AA13: 0 | AB13: 8 | AC13: 30 | AD13: shell_01 | AE13: t3020 | AF13: 140001^83|140002^58|130002^13
A14: 71012 | B14: t3010 | C14: 0 | D14: 1 | E14: 3 | F14: 1 | G14: 0 | H14: 0 | I14: =I13+3 -> 44 | J14: 0 | K14: 1400 | L14: 20001 | M14: 2.5 | N14: 0 | O14: 120 | P14: 15000 | Q14: 0 | R14: 0 | S14: 0 | T14: 0 | U14: 0 | V14: 0 | W14: 0 | X14: 0 | Y14: 0 | Z14: 0 | AA14: 0 | AB14: 8 | AC14: 30 | AD14: shell_01 | AE14: t3020 | AF14: 140001^98|140002^69|130002^15
A15: 71013 | B15: t3010 | C15: 0 | D15: 1 | E15: 3 | F15: 1 | G15: 0 | H15: 0 | I15: 47 | J15: 0 | K15: 1400 | L15: 20001 | M15: 2.5 | N15: 0 | O15: 120 | P15: 15000 | Q15: 0 | R15: 0 | S15: 0 | T15: 0 | U15: 0 | V15: 0 | W15: 0 | X15: 0 | Y15: 0 | Z15: 0 | AA15: 0 | AB15: 8 | AC15: 30 | AD15: shell_01 | AE15: t3020 | AF15: 140001^114|140002^80|130002^17
A16: 71014 | B16: t3010 | C16: 0 | D16: 1 | E16: 3 | F16: 1 | G16: 0 | H16: 0 | I16: 50 | J16: 0 | K16: 1400 | L16: 20001 | M16: 2.5 | N16: 0 | O16: 120 | P16: 15000 | Q16: 0 | R16: 0 | S16: 0 | T16: 0 | U16: 0 | V16: 0 | W16: 0 | X16: 0 | Y16: 0 | Z16: 0 | AA16: 0 | AB16: 8 | AC16: 30 | AD16: shell_01 | AE16: t3020 | AF16: 140001^130|140002^91|130002^19
A17: 71015 | B17: t3010 | C17: 0 | D17: 1 | E17: 3 | F17: 1 | G17: 0 | H17: 0 | I17: 53 | J17: 0 | K17: 1400 | L17: 20001 | M17: 2.5 | N17: 0 | O17: 120 | P17: 15000 | Q17: 0 | R17: 0 | S17: 0 | T17: 0 | U17: 0 | V17: 0 | W17: 0 | X17: 0 | Y17: 0 | Z17: 0 | AA17: 0 | AB17: 8 | AC17: 30 | AD17: shell_01 | AE17: t3020 | AF17: 140001^146|140002^102|130002^21
A18: 71016 | B18: t3010 | C18: 0 | D18: 1 | E18: 3 | F18: 1 | G18: 0 | H18: 0 | I18: 56 | J18: 0 | K18: 1400 | L18: 20001 | M18: 2.5 | N18: 0 | O18: 120 | P18: 15000 | Q18: 0 | R18: 0 | S18: 0 | T18: 0 | U18: 0 | V18: 0 | W18: 0 | X18: 0 | Y18: 0 | Z18: 0 | AA18: 0 | AB18: 8 | AC18: 30 | AD18: shell_01 | AE18: t3020 | AF18: 140001^161|140002^113|130002^23
A19: 71017 | B19: t3010 | C19: 0 | D19: 1 | E19: 3 | F19: 1 | G19: 0 | H19: 0 | I19: 59 | J19: 0 | K19: 1400 | L19: 20001 | M19: 2.5 | N19: 0 | O19: 120 | P19: 15000 | Q19: 0 | R19: 0 | S19: 0 | T19: 0 | U19: 0 | V19: 0 | W19: 0 | X19: 0 | Y19: 0 | Z19: 0 | AA19: 0 | AB19: 8 | AC19: 30 | AD19: shell_01 | AE19: t3020 | AF19: 140001^177|140002^124|130002^25
A20: 71018 | B20: t3010 | C20: 0 | D20: 1 | E20: 3 | F20: 1 | G20: 0 | H20: 0 | I20: 62 | J20: 0 | K20: 1400 | L20: 20001 | M20: 2.5 | N20: 0 | O20: 120 | P20: 15000 | Q20: 0 | R20: 0 | S20: 0 | T20: 0 | U20: 0 | V20: 0 | W20: 0 | X20: 0 | Y20: 0 | Z20: 0 | AA20: 0 | AB20: 8 | AC20: 30 | AD20: shell_01 | AE20: t3020 | AF20: 140001^193|140002^135|130002^27
A21: 71019 | B21: t3010 | C21: 0 | D21: 1 | E21: 3 | F21: 1 | G21: 0 | H21: 0 | I21: 65 | J21: 0 | K21: 1400 | L21: 20001 | M21: 2.5 | N21: 0 | O21: 120 | P21: 15000 | Q21: 0 | R21: 0 | S21: 0 | T21: 0 | U21: 0 | V21: 0 | W21: 0 | X21: 0 | Y21: 0 | Z21: 0 | AA21: 0 | AB21: 8 | AC21: 30 | AD21: shell_01 | AE21: t3020 | AF21: 140001^209|140002^146|130002^29
A22: 71020 | B22: t3010 | C22: 0 | D22: 1 | E22: 3 | F22: 1 | G22: 0 | H22: 0 | I22: 68 | J22: 0 | K22: 1400 | L22: 20001 | M22: 2.5 | N22: 0 | O22: 120 | P22: 15000 | Q22: 0 | R22: 0 | S22: 0 | T22: 0 | U22: 0 | V22: 0 | W22: 0 | X22: 0 | Y22: 0 | Z22: 0 | AA22: 0 | AB22: 8 | AC22: 30 | AD22: shell_01 | AE22: t3020 | AF22: 140001^224|140002^157|130002^31
A23: 71021 | B23: t3010 | C23: 0 | D23: 1 | E23: 3 | F23: 1 | G23: 0 | H23: 0 | I23: 71 | J23: 0 | K23: 1400 | L23: 20001 | M23: 2 | N23: 0 | O23: 120 | P23: 15000 | Q23: 0 | R23: 0 | S23: 0 | T23: 0 | U23: 0 | V23: 0 | W23: 0 | X23: 0 | Y23: 0 | Z23: 0 | AA23: 0 | AB23: 8 | AC23: 30 | AD23: shell_01 | AE23: t3020 | AF23: 140001^250|140002^175|130002^34
A24: 71022 | B24: t3010 | C24: 0 | D24: 1 | E24: 3 | F24: 1 | G24: 0 | H24: 0 | I24: 74 | J24: 0 | K24: 1400 | L24: 20001 | M24: 2 | N24: 0 | O24: 120 | P24: 15000 | Q24: 0 | R24: 0 | S24: 0 | T24: 0 | U24: 0 | V24: 0 | W24: 0 | X24: 0 | Y24: 0 | Z24: 0 | AA24: 0 | AB24: 8 | AC24: 30 | AD24: shell_01 | AE24: t3020 | AF24: 140001^276|140002^193|130002^37
A25: 71023 | B25: t3010 | C25: 0 | D25: 1 | E25: 3 | F25: 1 | G25: 0 | H25: 0 | I25: 77 | J25: 0 | K25: 1400 | L25: 20001 | M25: 2 | N25: 0 | O25: 120 | P25: 15000 | Q25: 0 | R25: 0 | S25: 0 | T25: 0 | U25: 0 | V25: 0 | W25: 0 | X25: 0 | Y25: 0 | Z25: 0 | AA25: 0 | AB25: 8 | AC25: 30 | AD25: shell_01 | AE25: t3020 | AF25: 140001^302|140002^211|130002^40
A26: 71024 | B26: t3010 | C26: 0 | D26: 1 | E26: 3 | F26: 1 | G26: 0 | H26: 0 | I26: 80 | J26: 0 | K26: 1400 | L26: 20001 | M26: 2 | N26: 0 | O26: 120 | P26: 15000 | Q26: 0 | R26: 0 | S26: 0 | T26: 0 | U26: 0 | V26: 0 | W26: 0 | X26: 0 | Y26: 0 | Z26: 0 | AA26: 0 | AB26: 8 | AC26: 30 | AD26: shell_01 | AE26: t3020 | AF26: 140001^327|140002^229|130002^43
A27: 71025 | B27: t3010 | C27: 0 | D27: 1 | E27: 3 | F27: 1 | G27: 0 | H27: 0 | I27: 83 | J27: 0 | K27: 1400 | L27: 20001 | M27: 2 | N27: 0 | O27: 120 | P27: 15000 | Q27: 0 | R27: 0 | S27: 0 | T27: 0 | U27: 0 | V27: 0 | W27: 0 | X27: 0 | Y27: 0 | Z27: 0 | AA27: 0 | AB27: 8 | AC27: 30 | AD27: shell_01 | AE27: t3020 | AF27: 140001^353|140002^247|130002^46
A28: 71026 | B28: t3010 | C28: 0 | D28: 1 | E28: 3 | F28: 1 | G28: 0 | H28: 0 | I28: 86 | J28: 0 | K28: 1400 | L28: 20001 | M28: 2 | N28: 0 | O28: 120 | P28: 15000 | Q28: 0 | R28: 0 | S28: 0 | T28: 0 | U28: 0 | V28: 0 | W28: 0 | X28: 0 | Y28: 0 | Z28: 0 | AA28: 0 | AB28: 8 | AC28: 30 | AD28: shell_01 | AE28: t3020 | AF28: 140001^379|140002^265|130002^49
A29: 71027 | B29: t3010 | C29: 0 | D29: 1 | E29: 3 | F29: 1 | G29: 0 | H29: 0 | I29: 89 | J29: 0 | K29: 1400 | L29: 20001 | M29: 2 | N29: 0 | O29: 120 | P29: 15000 | Q29: 0 | R29: 0 | S29: 0 | T29: 0 | U29: 0 | V29: 0 | W29: 0 | X29: 0 | Y29: 0 | Z29: 0 | AA29: 0 | AB29: 8 | AC29: 30 | AD29: shell_01 | AE29: t3020 | AF29: 140001^405|140002^283|130002^52
A30: 71028 | B30: t3010 | C30: 0 | D30: 1 | E30: 3 | F30: 1 | G30: 0 | H30: 0 | I30: 92 | J30: 0 | K30: 1400 | L30: 20001 | M30: 2 | N30: 0 | O30: 120 | P30: 15000 | Q30: 0 | R30: 0 | S30: 0 | T30: 0 | U30: 0 | V30: 0 | W30: 0 | X30: 0 | Y30: 0 | Z30: 0 | AA30: 0 | AB30: 8 | AC30: 30 | AD30: shell_01 | AE30: t3020 | AF30: 140001^431|140002^301|130002^55
A31: 71029 | B31: t3010 | C31: 0 | D31: 1 | E31: 3 | F31: 1 | G31: 0 | H31: 0 | I31: 95 | J31: 0 | K31: 1400 | L31: 20001 | M31: 2 | N31: 0 | O31: 120 | P31: 15000 | Q31: 0 | R31: 0 | S31: 0 | T31: 0 | U31: 0 | V31: 0 | W31: 0 | X31: 0 | Y31: 0 | Z31: 0 | AA31: 0 | AB31: 8 | AC31: 30 | AD31: shell_01 | AE31: t3020 | AF31: 140001^456|140002^319|130002^58
A32: 71030 | B32: t3010 | C32: 0 | D32: 1 | E32: 3 | F32: 1 | G32: 0 | H32: 0 | I32: 98 | J32: 0 | K32: 1400 | L32: 20001 | M32: 2 | N32: 0 | O32: 120 | P32: 15000 | Q32: 0 | R32: 0 | S32: 0 | T32: 0 | U32: 0 | V32: 0 | W32: 0 | X32: 0 | Y32: 0 | Z32: 0 | AA32: 0 | AB32: 8 | AC32: 30 | AD32: shell_01 | AE32: t3020 | AF32: 140001^482|140002^337|130002^61
A33: 71031 | B33: t3010 | C33: 0 | D33: 1 | E33: 3 | F33: 1 | G33: 0 | H33: 0 | I33: =I32+4 -> 102 | J33: 0 | K33: 1400 | L33: 20001 | M33: 1.8 | N33: 0 | O33: 120 | P33: 15000 | Q33: 0 | R33: 0 | S33: 0 | T33: 0 | U33: 0 | V33: 0 | W33: 0 | X33: 0 | Y33: 0 | Z33: 0 | AA33: 0 | AB33: 8 | AC33: 30 | AD33: shell_01 | AE33: t3020 | AF33: 140001^518|140002^362|130002^65
A34: 71032 | B34: t3010 | C34: 0 | D34: 1 | E34: 3 | F34: 1 | G34: 0 | H34: 0 | I34: =I33+4 -> 106 | J34: 0 | K34: 1400 | L34: 20001 | M34: 1.8 | N34: 0 | O34: 120 | P34: 15000 | Q34: 0 | R34: 0 | S34: 0 | T34: 0 | U34: 0 | V34: 0 | W34: 0 | X34: 0 | Y34: 0 | Z34: 0 | AA34: 0 | AB34: 8 | AC34: 30 | AD34: shell_01 | AE34: t3020 | AF34: 140001^554|140002^387|130002^69
A35: 71033 | B35: t3010 | C35: 0 | D35: 1 | E35: 3 | F35: 1 | G35: 0 | H35: 0 | I35: 110 | J35: 0 | K35: 1400 | L35: 20001 | M35: 1.8 | N35: 0 | O35: 120 | P35: 15000 | Q35: 0 | R35: 0 | S35: 0 | T35: 0 | U35: 0 | V35: 0 | W35: 0 | X35: 0 | Y35: 0 | Z35: 0 | AA35: 0 | AB35: 8 | AC35: 30 | AD35: shell_01 | AE35: t3020 | AF35: 140001^590|140002^412|130002^73
A36: 71034 | B36: t3010 | C36: 0 | D36: 1 | E36: 3 | F36: 1 | G36: 0 | H36: 0 | I36: 114 | J36: 0 | K36: 1400 | L36: 20001 | M36: 1.8 | N36: 0 | O36: 120 | P36: 15000 | Q36: 0 | R36: 0 | S36: 0 | T36: 0 | U36: 0 | V36: 0 | W36: 0 | X36: 0 | Y36: 0 | Z36: 0 | AA36: 0 | AB36: 8 | AC36: 30 | AD36: shell_01 | AE36: t3020 | AF36: 140001^625|140002^437|130002^77
A37: 71035 | B37: t3010 | C37: 0 | D37: 1 | E37: 3 | F37: 1 | G37: 0 | H37: 0 | I37: 118 | J37: 0 | K37: 1400 | L37: 20001 | M37: 1.8 | N37: 0 | O37: 120 | P37: 15000 | Q37: 0 | R37: 0 | S37: 0 | T37: 0 | U37: 0 | V37: 0 | W37: 0 | X37: 0 | Y37: 0 | Z37: 0 | AA37: 0 | AB37: 8 | AC37: 30 | AD37: shell_01 | AE37: t3020 | AF37: 140001^661|140002^462|130002^81
A38: 71036 | B38: t3010 | C38: 0 | D38: 1 | E38: 3 | F38: 1 | G38: 0 | H38: 0 | I38: 122 | J38: 0 | K38: 1400 | L38: 20001 | M38: 1.8 | N38: 0 | O38: 120 | P38: 15000 | Q38: 0 | R38: 0 | S38: 0 | T38: 0 | U38: 0 | V38: 0 | W38: 0 | X38: 0 | Y38: 0 | Z38: 0 | AA38: 0 | AB38: 8 | AC38: 30 | AD38: shell_01 | AE38: t3020 | AF38: 140001^697|140002^487|130002^85
A39: 71037 | B39: t3010 | C39: 0 | D39: 1 | E39: 3 | F39: 1 | G39: 0 | H39: 0 | I39: 126 | J39: 0 | K39: 1400 | L39: 20001 | M39: 1.8 | N39: 0 | O39: 120 | P39: 15000 | Q39: 0 | R39: 0 | S39: 0 | T39: 0 | U39: 0 | V39: 0 | W39: 0 | X39: 0 | Y39: 0 | Z39: 0 | AA39: 0 | AB39: 8 | AC39: 30 | AD39: shell_01 | AE39: t3020 | AF39: 140001^733|140002^512|130002^89
A40: 71038 | B40: t3010 | C40: 0 | D40: 1 | E40: 3 | F40: 1 | G40: 0 | H40: 0 | I40: 130 | J40: 0 | K40: 1400 | L40: 20001 | M40: 1.8 | N40: 0 | O40: 120 | P40: 15000 | Q40: 0 | R40: 0 | S40: 0 | T40: 0 | U40: 0 | V40: 0 | W40: 0 | X40: 0 | Y40: 0 | Z40: 0 | AA40: 0 | AB40: 8 | AC40: 30 | AD40: shell_01 | AE40: t3020 | AF40: 140001^769|140002^537|130002^93
A41: 71039 | B41: t3010 | C41: 0 | D41: 1 | E41: 3 | F41: 1 | G41: 0 | H41: 0 | I41: 134 | J41: 0 | K41: 1400 | L41: 20001 | M41: 1.8 | N41: 0 | O41: 120 | P41: 15000 | Q41: 0 | R41: 0 | S41: 0 | T41: 0 | U41: 0 | V41: 0 | W41: 0 | X41: 0 | Y41: 0 | Z41: 0 | AA41: 0 | AB41: 8 | AC41: 30 | AD41: shell_01 | AE41: t3020 | AF41: 140001^804|140002^562|130002^97
A42: 71040 | B42: t3010 | C42: 0 | D42: 1 | E42: 3 | F42: 1 | G42: 0 | H42: 0 | I42: 138 | J42: 0 | K42: 1400 | L42: 20001 | M42: 1.8 | N42: 0 | O42: 120 | P42: 15000 | Q42: 0 | R42: 0 | S42: 0 | T42: 0 | U42: 0 | V42: 0 | W42: 0 | X42: 0 | Y42: 0 | Z42: 0 | AA42: 0 | AB42: 8 | AC42: 30 | AD42: shell_01 | AE42: t3020 | AF42: 140001^840|140002^587|130002^101
A43: 71041 | B43: t3010 | C43: 0 | D43: 1 | E43: 3 | F43: 1 | G43: 0 | H43: 0 | I43: 142 | J43: 0 | K43: 1400 | L43: 20001 | M43: 1.6 | N43: 0 | O43: 120 | P43: 15000 | Q43: 0 | R43: 0 | S43: 0 | T43: 0 | U43: 0 | V43: 0 | W43: 0 | X43: 0 | Y43: 0 | Z43: 0 | AA43: 0 | AB43: 8 | AC43: 30 | AD43: shell_01 | AE43: t3020 | AF43: 140001^929|140002^649|130002^107
A44: 71042 | B44: t3010 | C44: 0 | D44: 1 | E44: 3 | F44: 1 | G44: 0 | H44: 0 | I44: 146 | J44: 0 | K44: 1400 | L44: 20001 | M44: 1.6 | N44: 0 | O44: 120 | P44: 15000 | Q44: 0 | R44: 0 | S44: 0 | T44: 0 | U44: 0 | V44: 0 | W44: 0 | X44: 0 | Y44: 0 | Z44: 0 | AA44: 0 | AB44: 8 | AC44: 30 | AD44: shell_01 | AE44: t3020 | AF44: 140001^1018|140002^711|130002^113
A45: 71043 | B45: t3010 | C45: 0 | D45: 1 | E45: 3 | F45: 1 | G45: 0 | H45: 0 | I45: 150 | J45: 0 | K45: 1400 | L45: 20001 | M45: 1.6 | N45: 0 | O45: 120 | P45: 15000 | Q45: 0 | R45: 0 | S45: 0 | T45: 0 | U45: 0 | V45: 0 | W45: 0 | X45: 0 | Y45: 0 | Z45: 0 | AA45: 0 | AB45: 8 | AC45: 30 | AD45: shell_01 | AE45: t3020 | AF45: 140001^1107|140002^773|130002^119
A46: 71044 | B46: t3010 | C46: 0 | D46: 1 | E46: 3 | F46: 1 | G46: 0 | H46: 0 | I46: 154 | J46: 0 | K46: 1400 | L46: 20001 | M46: 1.6 | N46: 0 | O46: 120 | P46: 15000 | Q46: 0 | R46: 0 | S46: 0 | T46: 0 | U46: 0 | V46: 0 | W46: 0 | X46: 0 | Y46: 0 | Z46: 0 | AA46: 0 | AB46: 8 | AC46: 30 | AD46: shell_01 | AE46: t3020 | AF46: 140001^1195|140002^835|130002^125
A47: 71045 | B47: t3010 | C47: 0 | D47: 1 | E47: 3 | F47: 1 | G47: 0 | H47: 0 | I47: 158 | J47: 0 | K47: 1400 | L47: 20001 | M47: 1.6 | N47: 0 | O47: 120 | P47: 15000 | Q47: 0 | R47: 0 | S47: 0 | T47: 0 | U47: 0 | V47: 0 | W47: 0 | X47: 0 | Y47: 0 | Z47: 0 | AA47: 0 | AB47: 8 | AC47: 30 | AD47: shell_01 | AE47: t3020 | AF47: 140001^1284|140002^897|130002^131
A48: 71046 | B48: t3010 | C48: 0 | D48: 1 | E48: 3 | F48: 1 | G48: 0 | H48: 0 | I48: 162 | J48: 0 | K48: 1400 | L48: 20001 | M48: 1.6 | N48: 0 | O48: 120 | P48: 15000 | Q48: 0 | R48: 0 | S48: 0 | T48: 0 | U48: 0 | V48: 0 | W48: 0 | X48: 0 | Y48: 0 | Z48: 0 | AA48: 0 | AB48: 8 | AC48: 30 | AD48: shell_01 | AE48: t3020 | AF48: 140001^1373|140002^959|130002^137
A49: 71047 | B49: t3010 | C49: 0 | D49: 1 | E49: 3 | F49: 1 | G49: 0 | H49: 0 | I49: 166 | J49: 0 | K49: 1400 | L49: 20001 | M49: 1.6 | N49: 0 | O49: 120 | P49: 15000 | Q49: 0 | R49: 0 | S49: 0 | T49: 0 | U49: 0 | V49: 0 | W49: 0 | X49: 0 | Y49: 0 | Z49: 0 | AA49: 0 | AB49: 8 | AC49: 30 | AD49: shell_01 | AE49: t3020 | AF49: 140001^1462|140002^1021|130002^143
A50: 71048 | B50: t3010 | C50: 0 | D50: 1 | E50: 3 | F50: 1 | G50: 0 | H50: 0 | I50: 170 | J50: 0 | K50: 1400 | L50: 20001 | M50: 1.6 | N50: 0 | O50: 120 | P50: 15000 | Q50: 0 | R50: 0 | S50: 0 | T50: 0 | U50: 0 | V50: 0 | W50: 0 | X50: 0 | Y50: 0 | Z50: 0 | AA50: 0 | AB50: 8 | AC50: 30 | AD50: shell_01 | AE50: t3020 | AF50: 140001^1550|140002^1083|130002^149
A51: 71049 | B51: t3010 | C51: 0 | D51: 1 | E51: 3 | F51: 1 | G51: 0 | H51: 0 | I51: 174 | J51: 0 | K51: 1400 | L51: 20001 | M51: 1.6 | N51: 0 | O51: 120 | P51: 15000 | Q51: 0 | R51: 0 | S51: 0 | T51: 0 | U51: 0 | V51: 0 | W51: 0 | X51: 0 | Y51: 0 | Z51: 0 | AA51: 0 | AB51: 8 | AC51: 30 | AD51: shell_01 | AE51: t3020 | AF51: 140001^1639|140002^1145|130002^155
A52: 71050 | B52: t3010 | C52: 0 | D52: 1 | E52: 3 | F52: 1 | G52: 0 | H52: 0 | I52: 178 | J52: 0 | K52: 1400 | L52: 20001 | M52: 1.6 | N52: 0 | O52: 120 | P52: 15000 | Q52: 0 | R52: 0 | S52: 0 | T52: 0 | U52: 0 | V52: 0 | W52: 0 | X52: 0 | Y52: 0 | Z52: 0 | AA52: 0 | AB52: 8 | AC52: 30 | AD52: shell_01 | AE52: t3020 | AF52: 140001^1728|140002^1207|130002^161
A53: 71051 | B53: t3010 | C53: 0 | D53: 1 | E53: 3 | F53: 1 | G53: 0 | H53: 0 | I53: =I52+4 -> 182 | J53: 0 | K53: 1400 | L53: 20001 | M53: 1.4 | N53: 0 | O53: 120 | P53: 15000 | Q53: 0 | R53: 0 | S53: 0 | T53: 0 | U53: 0 | V53: 0 | W53: 0 | X53: 0 | Y53: 0 | Z53: 0 | AA53: 0 | AB53: 8 | AC53: 30 | AD53: shell_01 | AE53: t3020 | AF53: 140001^1866|140002^1303|130002^168
A54: 71052 | B54: t3010 | C54: 0 | D54: 1 | E54: 3 | F54: 1 | G54: 0 | H54: 0 | I54: 186 | J54: 0 | K54: 1400 | L54: 20001 | M54: 1.4 | N54: 0 | O54: 120 | P54: 15000 | Q54: 0 | R54: 0 | S54: 0 | T54: 0 | U54: 0 | V54: 0 | W54: 0 | X54: 0 | Y54: 0 | Z54: 0 | AA54: 0 | AB54: 8 | AC54: 30 | AD54: shell_01 | AE54: t3020 | AF54: 140001^2003|140002^1399|130002^175
A55: 71053 | B55: t3010 | C55: 0 | D55: 1 | E55: 3 | F55: 1 | G55: 0 | H55: 0 | I55: 190 | J55: 0 | K55: 1400 | L55: 20001 | M55: 1.4 | N55: 0 | O55: 120 | P55: 15000 | Q55: 0 | R55: 0 | S55: 0 | T55: 0 | U55: 0 | V55: 0 | W55: 0 | X55: 0 | Y55: 0 | Z55: 0 | AA55: 0 | AB55: 8 | AC55: 30 | AD55: shell_01 | AE55: t3020 | AF55: 140001^2140|140002^1495|130002^182
A56: 71054 | B56: t3010 | C56: 0 | D56: 1 | E56: 3 | F56: 1 | G56: 0 | H56: 0 | I56: 194 | J56: 0 | K56: 1400 | L56: 20001 | M56: 1.4 | N56: 0 | O56: 120 | P56: 15000 | Q56: 0 | R56: 0 | S56: 0 | T56: 0 | U56: 0 | V56: 0 | W56: 0 | X56: 0 | Y56: 0 | Z56: 0 | AA56: 0 | AB56: 8 | AC56: 30 | AD56: shell_01 | AE56: t3020 | AF56: 140001^2278|140002^1591|130002^189
A57: 71055 | B57: t3010 | C57: 0 | D57: 1 | E57: 3 | F57: 1 | G57: 0 | H57: 0 | I57: 198 | J57: 0 | K57: 1400 | L57: 20001 | M57: 1.4 | N57: 0 | O57: 120 | P57: 15000 | Q57: 0 | R57: 0 | S57: 0 | T57: 0 | U57: 0 | V57: 0 | W57: 0 | X57: 0 | Y57: 0 | Z57: 0 | AA57: 0 | AB57: 8 | AC57: 30 | AD57: shell_01 | AE57: t3020 | AF57: 140001^2415|140002^1687|130002^196
A58: 71056 | B58: t3010 | C58: 0 | D58: 1 | E58: 3 | F58: 1 | G58: 0 | H58: 0 | I58: 202 | J58: 0 | K58: 1400 | L58: 20001 | M58: 1.4 | N58: 0 | O58: 120 | P58: 15000 | Q58: 0 | R58: 0 | S58: 0 | T58: 0 | U58: 0 | V58: 0 | W58: 0 | X58: 0 | Y58: 0 | Z58: 0 | AA58: 0 | AB58: 8 | AC58: 30 | AD58: shell_01 | AE58: t3020 | AF58: 140001^2553|140002^1783|130002^203
A59: 71057 | B59: t3010 | C59: 0 | D59: 1 | E59: 3 | F59: 1 | G59: 0 | H59: 0 | I59: 206 | J59: 0 | K59: 1400 | L59: 20001 | M59: 1.4 | N59: 0 | O59: 120 | P59: 15000 | Q59: 0 | R59: 0 | S59: 0 | T59: 0 | U59: 0 | V59: 0 | W59: 0 | X59: 0 | Y59: 0 | Z59: 0 | AA59: 0 | AB59: 8 | AC59: 30 | AD59: shell_01 | AE59: t3020 | AF59: 140001^2690|140002^1879|130002^210
A60: 71058 | B60: t3010 | C60: 0 | D60: 1 | E60: 3 | F60: 1 | G60: 0 | H60: 0 | I60: 210 | J60: 0 | K60: 1400 | L60: 20001 | M60: 1.4 | N60: 0 | O60: 120 | P60: 15000 | Q60: 0 | R60: 0 | S60: 0 | T60: 0 | U60: 0 | V60: 0 | W60: 0 | X60: 0 | Y60: 0 | Z60: 0 | AA60: 0 | AB60: 8 | AC60: 30 | AD60: shell_01 | AE60: t3020 | AF60: 140001^2828|140002^1975|130002^217
A61: 71059 | B61: t3010 | C61: 0 | D61: 1 | E61: 3 | F61: 1 | G61: 0 | H61: 0 | I61: 214 | J61: 0 | K61: 1400 | L61: 20001 | M61: 1.4 | N61: 0 | O61: 120 | P61: 15000 | Q61: 0 | R61: 0 | S61: 0 | T61: 0 | U61: 0 | V61: 0 | W61: 0 | X61: 0 | Y61: 0 | Z61: 0 | AA61: 0 | AB61: 8 | AC61: 30 | AD61: shell_01 | AE61: t3020 | AF61: 140001^2965|140002^2071|130002^224
A62: 71060 | B62: t3010 | C62: 0 | D62: 1 | E62: 3 | F62: 1 | G62: 0 | H62: 0 | I62: 218 | J62: 0 | K62: 1400 | L62: 20001 | M62: 1.4 | N62: 0 | O62: 120 | P62: 15000 | Q62: 0 | R62: 0 | S62: 0 | T62: 0 | U62: 0 | V62: 0 | W62: 0 | X62: 0 | Y62: 0 | Z62: 0 | AA62: 0 | AB62: 8 | AC62: 30 | AD62: shell_01 | AE62: t3020 | AF62: 140001^3103|140002^2167|130002^231
A63: 71061 | B63: t3010 | C63: 0 | D63: 1 | E63: 3 | F63: 1 | G63: 0 | H63: 0 | I63: =I62+5 -> 223 | J63: 0 | K63: 1400 | L63: 20001 | M63: 1.2 | N63: 0 | O63: 120 | P63: 15000 | Q63: 0 | R63: 0 | S63: 0 | T63: 0 | U63: 0 | V63: 0 | W63: 0 | X63: 0 | Y63: 0 | Z63: 0 | AA63: 0 | AB63: 8 | AC63: 30 | AD63: shell_01 | AE63: t3020 | AF63: 140001^3343|140002^2335|130002^240
A64: 71062 | B64: t3010 | C64: 0 | D64: 1 | E64: 3 | F64: 1 | G64: 0 | H64: 0 | I64: =I63+5 -> 228 | J64: 0 | K64: 1400 | L64: 20001 | M64: 1.2 | N64: 0 | O64: 120 | P64: 15000 | Q64: 0 | R64: 0 | S64: 0 | T64: 0 | U64: 0 | V64: 0 | W64: 0 | X64: 0 | Y64: 0 | Z64: 0 | AA64: 0 | AB64: 8 | AC64: 30 | AD64: shell_01 | AE64: t3020 | AF64: 140001^3584|140002^2503|130002^249
A65: 71063 | B65: t3010 | C65: 0 | D65: 1 | E65: 3 | F65: 1 | G65: 0 | H65: 0 | I65: 233 | J65: 0 | K65: 1400 | L65: 20001 | M65: 1.2 | N65: 0 | O65: 120 | P65: 15000 | Q65: 0 | R65: 0 | S65: 0 | T65: 0 | U65: 0 | V65: 0 | W65: 0 | X65: 0 | Y65: 0 | Z65: 0 | AA65: 0 | AB65: 8 | AC65: 30 | AD65: shell_01 | AE65: t3020 | AF65: 140001^3825|140002^2671|130002^258
A66: 71064 | B66: t3010 | C66: 0 | D66: 1 | E66: 3 | F66: 1 | G66: 0 | H66: 0 | I66: 238 | J66: 0 | K66: 1400 | L66: 20001 | M66: 1.2 | N66: 0 | O66: 120 | P66: 15000 | Q66: 0 | R66: 0 | S66: 0 | T66: 0 | U66: 0 | V66: 0 | W66: 0 | X66: 0 | Y66: 0 | Z66: 0 | AA66: 0 | AB66: 8 | AC66: 30 | AD66: shell_01 | AE66: t3020 | AF66: 140001^4065|140002^2839|130002^267
A67: 71065 | B67: t3010 | C67: 0 | D67: 1 | E67: 3 | F67: 1 | G67: 0 | H67: 0 | I67: 243 | J67: 0 | K67: 1400 | L67: 20001 | M67: 1.2 | N67: 0 | O67: 120 | P67: 15000 | Q67: 0 | R67: 0 | S67: 0 | T67: 0 | U67: 0 | V67: 0 | W67: 0 | X67: 0 | Y67: 0 | Z67: 0 | AA67: 0 | AB67: 8 | AC67: 30 | AD67: shell_01 | AE67: t3020 | AF67: 140001^4306|140002^3007|130002^276
A68: 71066 | B68: t3010 | C68: 0 | D68: 1 | E68: 3 | F68: 1 | G68: 0 | H68: 0 | I68: 248 | J68: 0 | K68: 1400 | L68: 20001 | M68: 1.2 | N68: 0 | O68: 120 | P68: 15000 | Q68: 0 | R68: 0 | S68: 0 | T68: 0 | U68: 0 | V68: 0 | W68: 0 | X68: 0 | Y68: 0 | Z68: 0 | AA68: 0 | AB68: 8 | AC68: 30 | AD68: shell_01 | AE68: t3020 | AF68: 140001^4546|140002^3175|130002^285
A69: 71067 | B69: t3010 | C69: 0 | D69: 1 | E69: 3 | F69: 1 | G69: 0 | H69: 0 | I69: 253 | J69: 0 | K69: 1400 | L69: 20001 | M69: 1.2 | N69: 0 | O69: 120 | P69: 15000 | Q69: 0 | R69: 0 | S69: 0 | T69: 0 | U69: 0 | V69: 0 | W69: 0 | X69: 0 | Y69: 0 | Z69: 0 | AA69: 0 | AB69: 8 | AC69: 30 | AD69: shell_01 | AE69: t3020 | AF69: 140001^4787|140002^3343|130002^294
A70: 71068 | B70: t3010 | C70: 0 | D70: 1 | E70: 3 | F70: 1 | G70: 0 | H70: 0 | I70: 258 | J70: 0 | K70: 1400 | L70: 20001 | M70: 1.2 | N70: 0 | O70: 120 | P70: 15000 | Q70: 0 | R70: 0 | S70: 0 | T70: 0 | U70: 0 | V70: 0 | W70: 0 | X70: 0 | Y70: 0 | Z70: 0 | AA70: 0 | AB70: 8 | AC70: 30 | AD70: shell_01 | AE70: t3020 | AF70: 140001^5028|140002^3511|130002^303
A71: 71069 | B71: t3010 | C71: 0 | D71: 1 | E71: 3 | F71: 1 | G71: 0 | H71: 0 | I71: 263 | J71: 0 | K71: 1400 | L71: 20001 | M71: 1.2 | N71: 0 | O71: 120 | P71: 15000 | Q71: 0 | R71: 0 | S71: 0 | T71: 0 | U71: 0 | V71: 0 | W71: 0 | X71: 0 | Y71: 0 | Z71: 0 | AA71: 0 | AB71: 8 | AC71: 30 | AD71: shell_01 | AE71: t3020 | AF71: 140001^5268|140002^3679|130002^312
A72: 71070 | B72: t3010 | C72: 0 | D72: 1 | E72: 3 | F72: 1 | G72: 0 | H72: 0 | I72: 268 | J72: 0 | K72: 1400 | L72: 20001 | M72: 1.2 | N72: 0 | O72: 120 | P72: 15000 | Q72: 0 | R72: 0 | S72: 0 | T72: 0 | U72: 0 | V72: 0 | W72: 0 | X72: 0 | Y72: 0 | Z72: 0 | AA72: 0 | AB72: 8 | AC72: 30 | AD72: shell_01 | AE72: t3020 | AF72: 140001^5494|140002^3837|130002^321
A73: 71071 | B73: t3010 | C73: 0 | D73: 1 | E73: 3 | F73: 1 | G73: 0 | H73: 0 | I73: 273 | J73: 0 | K73: 1400 | L73: 20001 | M73: 1 | N73: 0 | O73: 120 | P73: 15000 | Q73: 0 | R73: 0 | S73: 0 | T73: 0 | U73: 0 | V73: 0 | W73: 0 | X73: 0 | Y73: 0 | Z73: 0 | AA73: 0 | AB73: 8 | AC73: 30 | AD73: shell_01 | AE73: t3020 | AF73: 140001^5721|140002^3995|130002^333
A74: 71072 | B74: t3010 | C74: 0 | D74: 1 | E74: 3 | F74: 1 | G74: 0 | H74: 0 | I74: 278 | J74: 0 | K74: 1400 | L74: 20001 | M74: 1 | N74: 0 | O74: 120 | P74: 15000 | Q74: 0 | R74: 0 | S74: 0 | T74: 0 | U74: 0 | V74: 0 | W74: 0 | X74: 0 | Y74: 0 | Z74: 0 | AA74: 0 | AB74: 8 | AC74: 30 | AD74: shell_01 | AE74: t3020 | AF74: 140001^5947|140002^4153|130002^345
A75: 71073 | B75: t3010 | C75: 0 | D75: 1 | E75: 3 | F75: 1 | G75: 0 | H75: 0 | I75: 283 | J75: 0 | K75: 1400 | L75: 20001 | M75: 1 | N75: 0 | O75: 120 | P75: 15000 | Q75: 0 | R75: 0 | S75: 0 | T75: 0 | U75: 0 | V75: 0 | W75: 0 | X75: 0 | Y75: 0 | Z75: 0 | AA75: 0 | AB75: 8 | AC75: 30 | AD75: shell_01 | AE75: t3020 | AF75: 140001^6173|140002^4311|130002^357
A76: 71074 | B76: t3010 | C76: 0 | D76: 1 | E76: 3 | F76: 1 | G76: 0 | H76: 0 | I76: 288 | J76: 0 | K76: 1400 | L76: 20001 | M76: 1 | N76: 0 | O76: 120 | P76: 15000 | Q76: 0 | R76: 0 | S76: 0 | T76: 0 | U76: 0 | V76: 0 | W76: 0 | X76: 0 | Y76: 0 | Z76: 0 | AA76: 0 | AB76: 8 | AC76: 30 | AD76: shell_01 | AE76: t3020 | AF76: 140001^6400|140002^4469|130002^369
A77: 71075 | B77: t3010 | C77: 0 | D77: 1 | E77: 3 | F77: 1 | G77: 0 | H77: 0 | I77: 293 | J77: 0 | K77: 1400 | L77: 20001 | M77: 1 | N77: 0 | O77: 120 | P77: 15000 | Q77: 0 | R77: 0 | S77: 0 | T77: 0 | U77: 0 | V77: 0 | W77: 0 | X77: 0 | Y77: 0 | Z77: 0 | AA77: 0 | AB77: 8 | AC77: 30 | AD77: shell_01 | AE77: t3020 | AF77: 140001^6626|140002^4627|130002^381
A78: 71076 | B78: t3010 | C78: 0 | D78: 1 | E78: 3 | F78: 1 | G78: 0 | H78: 0 | I78: 298 | J78: 0 | K78: 1400 | L78: 20001 | M78: 1 | N78: 0 | O78: 120 | P78: 15000 | Q78: 0 | R78: 0 | S78: 0 | T78: 0 | U78: 0 | V78: 0 | W78: 0 | X78: 0 | Y78: 0 | Z78: 0 | AA78: 0 | AB78: 8 | AC78: 30 | AD78: shell_01 | AE78: t3020 | AF78: 140001^6852|140002^4785|130002^393
A79: 71077 | B79: t3010 | C79: 0 | D79: 1 | E79: 3 | F79: 1 | G79: 0 | H79: 0 | I79: 303 | J79: 0 | K79: 1400 | L79: 20001 | M79: 1 | N79: 0 | O79: 120 | P79: 15000 | Q79: 0 | R79: 0 | S79: 0 | T79: 0 | U79: 0 | V79: 0 | W79: 0 | X79: 0 | Y79: 0 | Z79: 0 | AA79: 0 | AB79: 8 | AC79: 30 | AD79: shell_01 | AE79: t3020 | AF79: 140001^7078|140002^4943|130002^405
A80: 71078 | B80: t3010 | C80: 0 | D80: 1 | E80: 3 | F80: 1 | G80: 0 | H80: 0 | I80: 308 | J80: 0 | K80: 1400 | L80: 20001 | M80: 1 | N80: 0 | O80: 120 | P80: 15000 | Q80: 0 | R80: 0 | S80: 0 | T80: 0 | U80: 0 | V80: 0 | W80: 0 | X80: 0 | Y80: 0 | Z80: 0 | AA80: 0 | AB80: 8 | AC80: 30 | AD80: shell_01 | AE80: t3020 | AF80: 140001^7305|140002^5101|130002^417
A81: 71079 | B81: t3010 | C81: 0 | D81: 1 | E81: 3 | F81: 1 | G81: 0 | H81: 0 | I81: 313 | J81: 0 | K81: 1400 | L81: 20001 | M81: 1 | N81: 0 | O81: 120 | P81: 15000 | Q81: 0 | R81: 0 | S81: 0 | T81: 0 | U81: 0 | V81: 0 | W81: 0 | X81: 0 | Y81: 0 | Z81: 0 | AA81: 0 | AB81: 8 | AC81: 30 | AD81: shell_01 | AE81: t3020 | AF81: 140001^7531|140002^5259|130002^429
A82: 71080 | B82: t3010 | C82: 0 | D82: 1 | E82: 3 | F82: 1 | G82: 0 | H82: 0 | I82: 318 | J82: 0 | K82: 1400 | L82: 20001 | M82: 1 | N82: 0 | O82: 120 | P82: 15000 | Q82: 0 | R82: 0 | S82: 0 | T82: 0 | U82: 0 | V82: 0 | W82: 0 | X82: 0 | Y82: 0 | Z82: 0 | AA82: 0 | AB82: 8 | AC82: 30 | AD82: shell_01 | AE82: t3020 | AF82: 140001^7757|140002^5417|130002^441
A83: 71081 | B83: t3010 | C83: 0 | D83: 1 | E83: 3 | F83: 1 | G83: 0 | H83: 0 | I83: =I82+6 -> 324 | J83: 0 | K83: 1400 | L83: 20001 | M83: 0.9 | N83: 0 | O83: 120 | P83: 15000 | Q83: 0 | R83: 0 | S83: 0 | T83: 0 | U83: 0 | V83: 0 | W83: 0 | X83: 0 | Y83: 0 | Z83: 0 | AA83: 0 | AB83: 8 | AC83: 30 | AD83: shell_01 | AE83: t3020 | AF83: 140001^8313|140002^5805|130002^456
A84: 71082 | B84: t3010 | C84: 0 | D84: 1 | E84: 3 | F84: 1 | G84: 0 | H84: 0 | I84: =I83+6 -> 330 | J84: 0 | K84: 1400 | L84: 20001 | M84: 0.9 | N84: 0 | O84: 120 | P84: 15000 | Q84: 0 | R84: 0 | S84: 0 | T84: 0 | U84: 0 | V84: 0 | W84: 0 | X84: 0 | Y84: 0 | Z84: 0 | AA84: 0 | AB84: 8 | AC84: 30 | AD84: shell_01 | AE84: t3020 | AF84: 140001^8868|140002^6193|130002^471
A85: 71083 | B85: t3010 | C85: 0 | D85: 1 | E85: 3 | F85: 1 | G85: 0 | H85: 0 | I85: 336 | J85: 0 | K85: 1400 | L85: 20001 | M85: 0.9 | N85: 0 | O85: 120 | P85: 15000 | Q85: 0 | R85: 0 | S85: 0 | T85: 0 | U85: 0 | V85: 0 | W85: 0 | X85: 0 | Y85: 0 | Z85: 0 | AA85: 0 | AB85: 8 | AC85: 30 | AD85: shell_01 | AE85: t3020 | AF85: 140001^9424|140002^6581|130002^486
A86: 71084 | B86: t3010 | C86: 0 | D86: 1 | E86: 3 | F86: 1 | G86: 0 | H86: 0 | I86: 342 | J86: 0 | K86: 1400 | L86: 20001 | M86: 0.9 | N86: 0 | O86: 120 | P86: 15000 | Q86: 0 | R86: 0 | S86: 0 | T86: 0 | U86: 0 | V86: 0 | W86: 0 | X86: 0 | Y86: 0 | Z86: 0 | AA86: 0 | AB86: 8 | AC86: 30 | AD86: shell_01 | AE86: t3020 | AF86: 140001^9980|140002^6969|130002^501
A87: 71085 | B87: t3010 | C87: 0 | D87: 1 | E87: 3 | F87: 1 | G87: 0 | H87: 0 | I87: 348 | J87: 0 | K87: 1400 | L87: 20001 | M87: 0.9 | N87: 0 | O87: 120 | P87: 15000 | Q87: 0 | R87: 0 | S87: 0 | T87: 0 | U87: 0 | V87: 0 | W87: 0 | X87: 0 | Y87: 0 | Z87: 0 | AA87: 0 | AB87: 8 | AC87: 30 | AD87: shell_01 | AE87: t3020 | AF87: 140001^10535|140002^7357|130002^516
A88: 71086 | B88: t3010 | C88: 0 | D88: 1 | E88: 3 | F88: 1 | G88: 0 | H88: 0 | I88: 354 | J88: 0 | K88: 1400 | L88: 20001 | M88: 0.9 | N88: 0 | O88: 120 | P88: 15000 | Q88: 0 | R88: 0 | S88: 0 | T88: 0 | U88: 0 | V88: 0 | W88: 0 | X88: 0 | Y88: 0 | Z88: 0 | AA88: 0 | AB88: 8 | AC88: 30 | AD88: shell_01 | AE88: t3020 | AF88: 140001^11091|140002^7745|130002^531
A89: 71087 | B89: t3010 | C89: 0 | D89: 1 | E89: 3 | F89: 1 | G89: 0 | H89: 0 | I89: 360 | J89: 0 | K89: 1400 | L89: 20001 | M89: 0.9 | N89: 0 | O89: 120 | P89: 15000 | Q89: 0 | R89: 0 | S89: 0 | T89: 0 | U89: 0 | V89: 0 | W89: 0 | X89: 0 | Y89: 0 | Z89: 0 | AA89: 0 | AB89: 8 | AC89: 30 | AD89: shell_01 | AE89: t3020 | AF89: 140001^11647|140002^8133|130002^546
A90: 71088 | B90: t3010 | C90: 0 | D90: 1 | E90: 3 | F90: 1 | G90: 0 | H90: 0 | I90: 366 | J90: 0 | K90: 1400 | L90: 20001 | M90: 0.9 | N90: 0 | O90: 120 | P90: 15000 | Q90: 0 | R90: 0 | S90: 0 | T90: 0 | U90: 0 | V90: 0 | W90: 0 | X90: 0 | Y90: 0 | Z90: 0 | AA90: 0 | AB90: 8 | AC90: 30 | AD90: shell_01 | AE90: t3020 | AF90: 140001^12202|140002^8521|130002^561
A91: 71089 | B91: t3010 | C91: 0 | D91: 1 | E91: 3 | F91: 1 | G91: 0 | H91: 0 | I91: 372 | J91: 0 | K91: 1400 | L91: 20001 | M91: 0.9 | N91: 0 | O91: 120 | P91: 15000 | Q91: 0 | R91: 0 | S91: 0 | T91: 0 | U91: 0 | V91: 0 | W91: 0 | X91: 0 | Y91: 0 | Z91: 0 | AA91: 0 | AB91: 8 | AC91: 30 | AD91: shell_01 | AE91: t3020 | AF91: 140001^12758|140002^8909|130002^576
A92: 71090 | B92: t3010 | C92: 0 | D92: 1 | E92: 3 | F92: 1 | G92: 0 | H92: 0 | I92: 378 | J92: 0 | K92: 1400 | L92: 20001 | M92: 0.9 | N92: 0 | O92: 120 | P92: 15000 | Q92: 0 | R92: 0 | S92: 0 | T92: 0 | U92: 0 | V92: 0 | W92: 0 | X92: 0 | Y92: 0 | Z92: 0 | AA92: 0 | AB92: 8 | AC92: 30 | AD92: shell_01 | AE92: t3020 | AF92: 140001^13314|140002^9297|130002^591
A93: 71091 | B93: t3010 | C93: 0 | D93: 1 | E93: 3 | F93: 1 | G93: 0 | H93: 0 | I93: 384 | J93: 0 | K93: 1400 | L93: 20001 | M93: 0.8 | N93: 0 | O93: 120 | P93: 15000 | Q93: 0 | R93: 0 | S93: 0 | T93: 0 | U93: 0 | V93: 0 | W93: 0 | X93: 0 | Y93: 0 | Z93: 0 | AA93: 0 | AB93: 8 | AC93: 30 | AD93: shell_01 | AE93: t3020 | AF93: 140001^13985|140002^9766|130002^609
A94: 71092 | B94: t3010 | C94: 0 | D94: 1 | E94: 3 | F94: 1 | G94: 0 | H94: 0 | I94: 390 | J94: 0 | K94: 1400 | L94: 20001 | M94: 0.8 | N94: 0 | O94: 120 | P94: 15000 | Q94: 0 | R94: 0 | S94: 0 | T94: 0 | U94: 0 | V94: 0 | W94: 0 | X94: 0 | Y94: 0 | Z94: 0 | AA94: 0 | AB94: 8 | AC94: 30 | AD94: shell_01 | AE94: t3020 | AF94: 140001^14657|140002^10235|130002^627
A95: 71093 | B95: t3010 | C95: 0 | D95: 1 | E95: 3 | F95: 1 | G95: 0 | H95: 0 | I95: 396 | J95: 0 | K95: 1400 | L95: 20001 | M95: 0.8 | N95: 0 | O95: 120 | P95: 15000 | Q95: 0 | R95: 0 | S95: 0 | T95: 0 | U95: 0 | V95: 0 | W95: 0 | X95: 0 | Y95: 0 | Z95: 0 | AA95: 0 | AB95: 8 | AC95: 30 | AD95: shell_01 | AE95: t3020 | AF95: 140001^15329|140002^10704|130002^645
A96: 71094 | B96: t3010 | C96: 0 | D96: 1 | E96: 3 | F96: 1 | G96: 0 | H96: 0 | I96: 402 | J96: 0 | K96: 1400 | L96: 20001 | M96: 0.8 | N96: 0 | O96: 120 | P96: 15000 | Q96: 0 | R96: 0 | S96: 0 | T96: 0 | U96: 0 | V96: 0 | W96: 0 | X96: 0 | Y96: 0 | Z96: 0 | AA96: 0 | AB96: 8 | AC96: 30 | AD96: shell_01 | AE96: t3020 | AF96: 140001^16000|140002^11173|130002^663
A97: 71095 | B97: t3010 | C97: 0 | D97: 1 | E97: 3 | F97: 1 | G97: 0 | H97: 0 | I97: 408 | J97: 0 | K97: 1400 | L97: 20001 | M97: 0.8 | N97: 0 | O97: 120 | P97: 15000 | Q97: 0 | R97: 0 | S97: 0 | T97: 0 | U97: 0 | V97: 0 | W97: 0 | X97: 0 | Y97: 0 | Z97: 0 | AA97: 0 | AB97: 8 | AC97: 30 | AD97: shell_01 | AE97: t3020 | AF97: 140001^16672|140002^11642|130002^681
A98: 71096 | B98: t3010 | C98: 0 | D98: 1 | E98: 3 | F98: 1 | G98: 0 | H98: 0 | I98: 414 | J98: 0 | K98: 1400 | L98: 20001 | M98: 0.8 | N98: 0 | O98: 120 | P98: 15000 | Q98: 0 | R98: 0 | S98: 0 | T98: 0 | U98: 0 | V98: 0 | W98: 0 | X98: 0 | Y98: 0 | Z98: 0 | AA98: 0 | AB98: 8 | AC98: 30 | AD98: shell_01 | AE98: t3020 | AF98: 140001^17344|140002^12111|130002^699
A99: 71097 | B99: t3010 | C99: 0 | D99: 1 | E99: 3 | F99: 1 | G99: 0 | H99: 0 | I99: 420 | J99: 0 | K99: 1400 | L99: 20001 | M99: 0.8 | N99: 0 | O99: 120 | P99: 15000 | Q99: 0 | R99: 0 | S99: 0 | T99: 0 | U99: 0 | V99: 0 | W99: 0 | X99: 0 | Y99: 0 | Z99: 0 | AA99: 0 | AB99: 8 | AC99: 30 | AD99: shell_01 | AE99: t3020 | AF99: 140001^18015|140002^12580|130002^717
A100: 71098 | B100: t3010 | C100: 0 | D100: 1 | E100: 3 | F100: 1 | G100: 0 | H100: 0 | I100: 426 | J100: 0 | K100: 1400 | L100: 20001 | M100: 0.8 | N100: 0 | O100: 120 | P100: 15000 | Q100: 0 | R100: 0 | S100: 0 | T100: 0 | U100: 0 | V100: 0 | W100: 0 | X100: 0 | Y100: 0 | Z100: 0 | AA100: 0 | AB100: 8 | AC100: 30 | AD100: shell_01 | AE100: t3020 | AF100: 140001^18687|140002^13049|130002^735
A101: 71099 | B101: t3010 | C101: 0 | D101: 1 | E101: 3 | F101: 1 | G101: 0 | H101: 0 | I101: 432 | J101: 0 | K101: 1400 | L101: 20001 | M101: 0.8 | N101: 0 | O101: 120 | P101: 15000 | Q101: 0 | R101: 0 | S101: 0 | T101: 0 | U101: 0 | V101: 0 | W101: 0 | X101: 0 | Y101: 0 | Z101: 0 | AA101: 0 | AB101: 8 | AC101: 30 | AD101: shell_01 | AE101: t3020 | AF101: 140001^19359|140002^13518|130002^753
A102: 71100 | B102: t3010 | C102: 0 | D102: 1 | E102: 3 | F102: 1 | G102: 0 | H102: 0 | I102: 438 | J102: 0 | K102: 1400 | L102: 20001 | M102: 0.8 | N102: 0 | O102: 120 | P102: 15000 | Q102: 0 | R102: 0 | S102: 0 | T102: 0 | U102: 0 | V102: 0 | W102: 0 | X102: 0 | Y102: 0 | Z102: 0 | AA102: 0 | AB102: 8 | AC102: 30 | AD102: shell_01 | AE102: t3020 | AF102: 140001^20030|140002^13987|130002^771
A103: 71101 | B103: t3010 | C103: 0 | D103: 1 | E103: 3 | F103: 1 | G103: 0 | H103: 0 | I103: =I102+7 -> 445 | J103: 0 | K103: 1400 | L103: 20001 | M103: 0.7 | N103: 0 | O103: 120 | P103: 15000 | Q103: 0 | R103: 0 | S103: 0 | T103: 0 | U103: 0 | V103: 0 | W103: 0 | X103: 0 | Y103: 0 | Z103: 0 | AA103: 0 | AB103: 8 | AC103: 30 | AD103: shell_01 | AE103: t3020 | AF103: 140001^21000|140002^14664|130002^792
A104: 71102 | B104: t3010 | C104: 0 | D104: 1 | E104: 3 | F104: 1 | G104: 0 | H104: 0 | I104: =I103+7 -> 452 | J104: 0 | K104: 1400 | L104: 20001 | M104: 0.7 | N104: 0 | O104: 120 | P104: 15000 | Q104: 0 | R104: 0 | S104: 0 | T104: 0 | U104: 0 | V104: 0 | W104: 0 | X104: 0 | Y104: 0 | Z104: 0 | AA104: 0 | AB104: 8 | AC104: 30 | AD104: shell_01 | AE104: t3020 | AF104: 140001^21969|140002^15341|130002^813
A105: 71103 | B105: t3010 | C105: 0 | D105: 1 | E105: 3 | F105: 1 | G105: 0 | H105: 0 | I105: 459 | J105: 0 | K105: 1400 | L105: 20001 | M105: 0.7 | N105: 0 | O105: 120 | P105: 15000 | Q105: 0 | R105: 0 | S105: 0 | T105: 0 | U105: 0 | V105: 0 | W105: 0 | X105: 0 | Y105: 0 | Z105: 0 | AA105: 0 | AB105: 8 | AC105: 30 | AD105: shell_01 | AE105: t3020 | AF105: 140001^22939|140002^16018|130002^834
A106: 71104 | B106: t3010 | C106: 0 | D106: 1 | E106: 3 | F106: 1 | G106: 0 | H106: 0 | I106: 466 | J106: 0 | K106: 1400 | L106: 20001 | M106: 0.7 | N106: 0 | O106: 120 | P106: 15000 | Q106: 0 | R106: 0 | S106: 0 | T106: 0 | U106: 0 | V106: 0 | W106: 0 | X106: 0 | Y106: 0 | Z106: 0 | AA106: 0 | AB106: 8 | AC106: 30 | AD106: shell_01 | AE106: t3020 | AF106: 140001^23908|140002^16695|130002^855
A107: 71105 | B107: t3010 | C107: 0 | D107: 1 | E107: 3 | F107: 1 | G107: 0 | H107: 0 | I107: 473 | J107: 0 | K107: 1400 | L107: 20001 | M107: 0.7 | N107: 0 | O107: 120 | P107: 15000 | Q107: 0 | R107: 0 | S107: 0 | T107: 0 | U107: 0 | V107: 0 | W107: 0 | X107: 0 | Y107: 0 | Z107: 0 | AA107: 0 | AB107: 8 | AC107: 30 | AD107: shell_01 | AE107: t3020 | AF107: 140001^24878|140002^17372|130002^876
A108: 71106 | B108: t3010 | C108: 0 | D108: 1 | E108: 3 | F108: 1 | G108: 0 | H108: 0 | I108: 480 | J108: 0 | K108: 1400 | L108: 20001 | M108: 0.7 | N108: 0 | O108: 120 | P108: 15000 | Q108: 0 | R108: 0 | S108: 0 | T108: 0 | U108: 0 | V108: 0 | W108: 0 | X108: 0 | Y108: 0 | Z108: 0 | AA108: 0 | AB108: 8 | AC108: 30 | AD108: shell_01 | AE108: t3020 | AF108: 140001^25847|140002^18049|130002^897
A109: 71107 | B109: t3010 | C109: 0 | D109: 1 | E109: 3 | F109: 1 | G109: 0 | H109: 0 | I109: 487 | J109: 0 | K109: 1400 | L109: 20001 | M109: 0.7 | N109: 0 | O109: 120 | P109: 15000 | Q109: 0 | R109: 0 | S109: 0 | T109: 0 | U109: 0 | V109: 0 | W109: 0 | X109: 0 | Y109: 0 | Z109: 0 | AA109: 0 | AB109: 8 | AC109: 30 | AD109: shell_01 | AE109: t3020 | AF109: 140001^26817|140002^18726|130002^918
A110: 71108 | B110: t3010 | C110: 0 | D110: 1 | E110: 3 | F110: 1 | G110: 0 | H110: 0 | I110: 494 | J110: 0 | K110: 1400 | L110: 20001 | M110: 0.7 | N110: 0 | O110: 120 | P110: 15000 | Q110: 0 | R110: 0 | S110: 0 | T110: 0 | U110: 0 | V110: 0 | W110: 0 | X110: 0 | Y110: 0 | Z110: 0 | AA110: 0 | AB110: 8 | AC110: 30 | AD110: shell_01 | AE110: t3020 | AF110: 140001^27787|140002^19403|130002^939
A111: 71109 | B111: t3010 | C111: 0 | D111: 1 | E111: 3 | F111: 1 | G111: 0 | H111: 0 | I111: 501 | J111: 0 | K111: 1400 | L111: 20001 | M111: 0.7 | N111: 0 | O111: 120 | P111: 15000 | Q111: 0 | R111: 0 | S111: 0 | T111: 0 | U111: 0 | V111: 0 | W111: 0 | X111: 0 | Y111: 0 | Z111: 0 | AA111: 0 | AB111: 8 | AC111: 30 | AD111: shell_01 | AE111: t3020 | AF111: 140001^28756|140002^20080|130002^960
A112: 71110 | B112: t3010 | C112: 0 | D112: 1 | E112: 3 | F112: 1 | G112: 0 | H112: 0 | I112: 508 | J112: 0 | K112: 1400 | L112: 20001 | M112: 0.7 | N112: 0 | O112: 120 | P112: 15000 | Q112: 0 | R112: 0 | S112: 0 | T112: 0 | U112: 0 | V112: 0 | W112: 0 | X112: 0 | Y112: 0 | Z112: 0 | AA112: 0 | AB112: 8 | AC112: 30 | AD112: shell_01 | AE112: t3020 | AF112: 140001^29726|140002^20757|130002^981
A113: 71111 | B113: t3010 | C113: 0 | D113: 1 | E113: 3 | F113: 1 | G113: 0 | H113: 0 | I113: 515 | J113: 0 | K113: 1400 | L113: 20001 | M113: 0.6 | N113: 0 | O113: 120 | P113: 15000 | Q113: 0 | R113: 0 | S113: 0 | T113: 0 | U113: 0 | V113: 0 | W113: 0 | X113: 0 | Y113: 0 | Z113: 0 | AA113: 0 | AB113: 8 | AC113: 30 | AD113: shell_01 | AE113: t3020 | AF113: 140001^30695|140002^21434|130002^1005
A114: 71112 | B114: t3010 | C114: 0 | D114: 1 | E114: 3 | F114: 1 | G114: 0 | H114: 0 | I114: 522 | J114: 0 | K114: 1400 | L114: 20001 | M114: 0.6 | N114: 0 | O114: 120 | P114: 15000 | Q114: 0 | R114: 0 | S114: 0 | T114: 0 | U114: 0 | V114: 0 | W114: 0 | X114: 0 | Y114: 0 | Z114: 0 | AA114: 0 | AB114: 8 | AC114: 30 | AD114: shell_01 | AE114: t3020 | AF114: 140001^31665|140002^22111|130002^1029
A115: 71113 | B115: t3010 | C115: 0 | D115: 1 | E115: 3 | F115: 1 | G115: 0 | H115: 0 | I115: 529 | J115: 0 | K115: 1400 | L115: 20001 | M115: 0.6 | N115: 0 | O115: 120 | P115: 15000 | Q115: 0 | R115: 0 | S115: 0 | T115: 0 | U115: 0 | V115: 0 | W115: 0 | X115: 0 | Y115: 0 | Z115: 0 | AA115: 0 | AB115: 8 | AC115: 30 | AD115: shell_01 | AE115: t3020 | AF115: 140001^32634|140002^22788|130002^1053
A116: 71114 | B116: t3010 | C116: 0 | D116: 1 | E116: 3 | F116: 1 | G116: 0 | H116: 0 | I116: 536 | J116: 0 | K116: 1400 | L116: 20001 | M116: 0.6 | N116: 0 | O116: 120 | P116: 15000 | Q116: 0 | R116: 0 | S116: 0 | T116: 0 | U116: 0 | V116: 0 | W116: 0 | X116: 0 | Y116: 0 | Z116: 0 | AA116: 0 | AB116: 8 | AC116: 30 | AD116: shell_01 | AE116: t3020 | AF116: 140001^33604|140002^23465|130002^1077
A117: 71115 | B117: t3010 | C117: 0 | D117: 1 | E117: 3 | F117: 1 | G117: 0 | H117: 0 | I117: 543 | J117: 0 | K117: 1400 | L117: 20001 | M117: 0.6 | N117: 0 | O117: 120 | P117: 15000 | Q117: 0 | R117: 0 | S117: 0 | T117: 0 | U117: 0 | V117: 0 | W117: 0 | X117: 0 | Y117: 0 | Z117: 0 | AA117: 0 | AB117: 8 | AC117: 30 | AD117: shell_01 | AE117: t3020 | AF117: 140001^34573|140002^24142|130002^1101
A118: 71116 | B118: t3010 | C118: 0 | D118: 1 | E118: 3 | F118: 1 | G118: 0 | H118: 0 | I118: 550 | J118: 0 | K118: 1400 | L118: 20001 | M118: 0.6 | N118: 0 | O118: 120 | P118: 15000 | Q118: 0 | R118: 0 | S118: 0 | T118: 0 | U118: 0 | V118: 0 | W118: 0 | X118: 0 | Y118: 0 | Z118: 0 | AA118: 0 | AB118: 8 | AC118: 30 | AD118: shell_01 | AE118: t3020 | AF118: 140001^35543|140002^24819|130002^1125
A119: 71117 | B119: t3010 | C119: 0 | D119: 1 | E119: 3 | F119: 1 | G119: 0 | H119: 0 | I119: 557 | J119: 0 | K119: 1400 | L119: 20001 | M119: 0.6 | N119: 0 | O119: 120 | P119: 15000 | Q119: 0 | R119: 0 | S119: 0 | T119: 0 | U119: 0 | V119: 0 | W119: 0 | X119: 0 | Y119: 0 | Z119: 0 | AA119: 0 | AB119: 8 | AC119: 30 | AD119: shell_01 | AE119: t3020 | AF119: 140001^36512|140002^25496|130002^1149
A120: 71118 | B120: t3010 | C120: 0 | D120: 1 | E120: 3 | F120: 1 | G120: 0 | H120: 0 | I120: 564 | J120: 0 | K120: 1400 | L120: 20001 | M120: 0.6 | N120: 0 | O120: 120 | P120: 15000 | Q120: 0 | R120: 0 | S120: 0 | T120: 0 | U120: 0 | V120: 0 | W120: 0 | X120: 0 | Y120: 0 | Z120: 0 | AA120: 0 | AB120: 8 | AC120: 30 | AD120: shell_01 | AE120: t3020 | AF120: 140001^37482|140002^26173|130002^1173
A121: 71119 | B121: t3010 | C121: 0 | D121: 1 | E121: 3 | F121: 1 | G121: 0 | H121: 0 | I121: 571 | J121: 0 | K121: 1400 | L121: 20001 | M121: 0.6 | N121: 0 | O121: 120 | P121: 15000 | Q121: 0 | R121: 0 | S121: 0 | T121: 0 | U121: 0 | V121: 0 | W121: 0 | X121: 0 | Y121: 0 | Z121: 0 | AA121: 0 | AB121: 8 | AC121: 30 | AD121: shell_01 | AE121: t3020 | AF121: 140001^38451|140002^26850|130002^1197
A122: 71120 | B122: t3010 | C122: 0 | D122: 1 | E122: 3 | F122: 1 | G122: 0 | H122: 0 | I122: 578 | J122: 0 | K122: 1400 | L122: 20001 | M122: 0.6 | N122: 0 | O122: 120 | P122: 15000 | Q122: 0 | R122: 0 | S122: 0 | T122: 0 | U122: 0 | V122: 0 | W122: 0 | X122: 0 | Y122: 0 | Z122: 0 | AA122: 0 | AB122: 8 | AC122: 30 | AD122: shell_01 | AE122: t3020 | AF122: 140001^39421|140002^27527|130002^1221
A123: 72001 | B123: t3011 | C123: 0 | D123: 1 | E123: 3 | F123: 1 | G123: 0 | H123: 0 | I123: 34 | J123: 0 | K123: 750 | L123: 20002 | M123: 6 | N123: 0 | O123: 120 | P123: 15000 | Q123: 0 | R123: 0 | S123: 0 | T123: 0 | U123: 0 | V123: 0 | W123: 0 | X123: 0 | Y123: 0 | Z123: 0 | AA123: 0 | AB123: 15 | AC123: 20 | AD123: shell_02 | AE123: t3021 | AF123: 140001^20|140002^28|130002^2 | AG123: 魔法炮弹
A124: 72002 | B124: t3011 | C124: 0 | D124: 1 | E124: 3 | F124: 1 | G124: 0 | H124: 0 | I124: =I123+2 -> 36 | J124: 0 | K124: 750 | L124: 20002 | M124: 6 | N124: 0 | O124: 20 | P124: 15000 | Q124: 0 | R124: 0 | S124: 0 | T124: 0 | U124: 0 | V124: 0 | W124: 0 | X124: 0 | Y124: 0 | Z124: 0 | AA124: 0 | AB124: 15 | AC124: 20 | AD124: shell_02 | AE124: t3021 | AF124: 140001^23|140002^32|130002^3
A125: 72003 | B125: t3011 | C125: 0 | D125: 1 | E125: 3 | F125: 1 | G125: 0 | H125: 0 | I125: =I124+2 -> 38 | J125: 0 | K125: 750 | L125: 20002 | M125: 6 | N125: 0 | O125: 20 | P125: 15000 | Q125: 0 | R125: 0 | S125: 0 | T125: 0 | U125: 0 | V125: 0 | W125: 0 | X125: 0 | Y125: 0 | Z125: 0 | AA125: 0 | AB125: 15 | AC125: 20 | AD125: shell_02 | AE125: t3021 | AF125: 140001^26|140002^37|130002^4
A126: 72004 | B126: t3011 | C126: 0 | D126: 1 | E126: 3 | F126: 1 | G126: 0 | H126: 0 | I126: 40 | J126: 0 | K126: 750 | L126: 20002 | M126: 6 | N126: 0 | O126: 20 | P126: 15000 | Q126: 0 | R126: 0 | S126: 0 | T126: 0 | U126: 0 | V126: 0 | W126: 0 | X126: 0 | Y126: 0 | Z126: 0 | AA126: 0 | AB126: 15 | AC126: 20 | AD126: shell_02 | AE126: t3021 | AF126: 140001^29|140002^41|130002^5
A127: 72005 | B127: t3011 | C127: 0 | D127: 1 | E127: 3 | F127: 1 | G127: 0 | H127: 0 | I127: 42 | J127: 0 | K127: 750 | L127: 20002 | M127: 6 | N127: 0 | O127: 20 | P127: 15000 | Q127: 0 | R127: 0 | S127: 0 | T127: 0 | U127: 0 | V127: 0 | W127: 0 | X127: 0 | Y127: 0 | Z127: 0 | AA127: 0 | AB127: 15 | AC127: 20 | AD127: shell_02 | AE127: t3021 | AF127: 140001^32|140002^45|130002^6
A128: 72006 | B128: t3011 | C128: 0 | D128: 1 | E128: 3 | F128: 1 | G128: 0 | H128: 0 | I128: 44 | J128: 0 | K128: 750 | L128: 20002 | M128: 6 | N128: 0 | O128: 20 | P128: 15000 | Q128: 0 | R128: 0 | S128: 0 | T128: 0 | U128: 0 | V128: 0 | W128: 0 | X128: 0 | Y128: 0 | Z128: 0 | AA128: 0 | AB128: 15 | AC128: 20 | AD128: shell_02 | AE128: t3021 | AF128: 140001^35|140002^50|130002^7
A129: 72007 | B129: t3011 | C129: 0 | D129: 1 | E129: 3 | F129: 1 | G129: 0 | H129: 0 | I129: 46 | J129: 0 | K129: 750 | L129: 20002 | M129: 6 | N129: 0 | O129: 20 | P129: 15000 | Q129: 0 | R129: 0 | S129: 0 | T129: 0 | U129: 0 | V129: 0 | W129: 0 | X129: 0 | Y129: 0 | Z129: 0 | AA129: 0 | AB129: 15 | AC129: 20 | AD129: shell_02 | AE129: t3021 | AF129: 140001^38|140002^54|130002^8
A130: 72008 | B130: t3011 | C130: 0 | D130: 1 | E130: 3 | F130: 1 | G130: 0 | H130: 0 | I130: 48 | J130: 0 | K130: 750 | L130: 20002 | M130: 6 | N130: 0 | O130: 20 | P130: 15000 | Q130: 0 | R130: 0 | S130: 0 | T130: 0 | U130: 0 | V130: 0 | W130: 0 | X130: 0 | Y130: 0 | Z130: 0 | AA130: 0 | AB130: 15 | AC130: 20 | AD130: shell_02 | AE130: t3021 | AF130: 140001^41|140002^58|130002^9
A131: 72009 | B131: t3011 | C131: 0 | D131: 1 | E131: 3 | F131: 1 | G131: 0 | H131: 0 | I131: 50 | J131: 0 | K131: 750 | L131: 20002 | M131: 6 | N131: 0 | O131: 20 | P131: 15000 | Q131: 0 | R131: 0 | S131: 0 | T131: 0 | U131: 0 | V131: 0 | W131: 0 | X131: 0 | Y131: 0 | Z131: 0 | AA131: 0 | AB131: 15 | AC131: 20 | AD131: shell_02 | AE131: t3021 | AF131: 140001^44|140002^63|130002^10
A132: 72010 | B132: t3011 | C132: 0 | D132: 1 | E132: 3 | F132: 1 | G132: 0 | H132: 0 | I132: 52 | J132: 0 | K132: 750 | L132: 20002 | M132: 6 | N132: 0 | O132: 20 | P132: 15000 | Q132: 0 | R132: 0 | S132: 0 | T132: 0 | U132: 0 | V132: 0 | W132: 0 | X132: 0 | Y132: 0 | Z132: 0 | AA132: 0 | AB132: 15 | AC132: 20 | AD132: shell_02 | AE132: t3021 | AF132: 140001^47|140002^67|130002^11
A133: 72011 | B133: t3011 | C133: 0 | D133: 1 | E133: 3 | F133: 1 | G133: 0 | H133: 0 | I133: =I132+4 -> 56 | J133: 0 | K133: 750 | L133: 20002 | M133: 5.5 | N133: 0 | O133: 20 | P133: 15000 | Q133: 0 | R133: 0 | S133: 0 | T133: 0 | U133: 0 | V133: 0 | W133: 0 | X133: 0 | Y133: 0 | Z133: 0 | AA133: 0 | AB133: 15 | AC133: 20 | AD133: shell_02 | AE133: t3021 | AF133: 140001^58|140002^83|130002^13
A134: 72012 | B134: t3011 | C134: 0 | D134: 1 | E134: 3 | F134: 1 | G134: 0 | H134: 0 | I134: =I133+4 -> 60 | J134: 0 | K134: 750 | L134: 20002 | M134: 5.5 | N134: 0 | O134: 20 | P134: 15000 | Q134: 0 | R134: 0 | S134: 0 | T134: 0 | U134: 0 | V134: 0 | W134: 0 | X134: 0 | Y134: 0 | Z134: 0 | AA134: 0 | AB134: 15 | AC134: 20 | AD134: shell_02 | AE134: t3021 | AF134: 140001^69|140002^98|130002^15
A135: 72013 | B135: t3011 | C135: 0 | D135: 1 | E135: 3 | F135: 1 | G135: 0 | H135: 0 | I135: 64 | J135: 0 | K135: 750 | L135: 20002 | M135: 5.5 | N135: 0 | O135: 20 | P135: 15000 | Q135: 0 | R135: 0 | S135: 0 | T135: 0 | U135: 0 | V135: 0 | W135: 0 | X135: 0 | Y135: 0 | Z135: 0 | AA135: 0 | AB135: 15 | AC135: 20 | AD135: shell_02 | AE135: t3021 | AF135: 140001^80|140002^114|130002^17
A136: 72014 | B136: t3011 | C136: 0 | D136: 1 | E136: 3 | F136: 1 | G136: 0 | H136: 0 | I136: 68 | J136: 0 | K136: 750 | L136: 20002 | M136: 5.5 | N136: 0 | O136: 20 | P136: 15000 | Q136: 0 | R136: 0 | S136: 0 | T136: 0 | U136: 0 | V136: 0 | W136: 0 | X136: 0 | Y136: 0 | Z136: 0 | AA136: 0 | AB136: 15 | AC136: 20 | AD136: shell_02 | AE136: t3021 | AF136: 140001^91|140002^130|130002^19
A137: 72015 | B137: t3011 | C137: 0 | D137: 1 | E137: 3 | F137: 1 | G137: 0 | H137: 0 | I137: 72 | J137: 0 | K137: 750 | L137: 20002 | M137: 5.5 | N137: 0 | O137: 20 | P137: 15000 | Q137: 0 | R137: 0 | S137: 0 | T137: 0 | U137: 0 | V137: 0 | W137: 0 | X137: 0 | Y137: 0 | Z137: 0 | AA137: 0 | AB137: 15 | AC137: 20 | AD137: shell_02 | AE137: t3021 | AF137: 140001^102|140002^146|130002^21
A138: 72016 | B138: t3011 | C138: 0 | D138: 1 | E138: 3 | F138: 1 | G138: 0 | H138: 0 | I138: 76 | J138: 0 | K138: 750 | L138: 20002 | M138: 5.5 | N138: 0 | O138: 20 | P138: 15000 | Q138: 0 | R138: 0 | S138: 0 | T138: 0 | U138: 0 | V138: 0 | W138: 0 | X138: 0 | Y138: 0 | Z138: 0 | AA138: 0 | AB138: 15 | AC138: 20 | AD138: shell_02 | AE138: t3021 | AF138: 140001^113|140002^161|130002^23
A139: 72017 | B139: t3011 | C139: 0 | D139: 1 | E139: 3 | F139: 1 | G139: 0 | H139: 0 | I139: 80 | J139: 0 | K139: 750 | L139: 20002 | M139: 5.5 | N139: 0 | O139: 20 | P139: 15000 | Q139: 0 | R139: 0 | S139: 0 | T139: 0 | U139: 0 | V139: 0 | W139: 0 | X139: 0 | Y139: 0 | Z139: 0 | AA139: 0 | AB139: 15 | AC139: 20 | AD139: shell_02 | AE139: t3021 | AF139: 140001^124|140002^177|130002^25
A140: 72018 | B140: t3011 | C140: 0 | D140: 1 | E140: 3 | F140: 1 | G140: 0 | H140: 0 | I140: 84 | J140: 0 | K140: 750 | L140: 20002 | M140: 5.5 | N140: 0 | O140: 20 | P140: 15000 | Q140: 0 | R140: 0 | S140: 0 | T140: 0 | U140: 0 | V140: 0 | W140: 0 | X140: 0 | Y140: 0 | Z140: 0 | AA140: 0 | AB140: 15 | AC140: 20 | AD140: shell_02 | AE140: t3021 | AF140: 140001^135|140002^193|130002^27
A141: 72019 | B141: t3011 | C141: 0 | D141: 1 | E141: 3 | F141: 1 | G141: 0 | H141: 0 | I141: 88 | J141: 0 | K141: 750 | L141: 20002 | M141: 5.5 | N141: 0 | O141: 20 | P141: 15000 | Q141: 0 | R141: 0 | S141: 0 | T141: 0 | U141: 0 | V141: 0 | W141: 0 | X141: 0 | Y141: 0 | Z141: 0 | AA141: 0 | AB141: 15 | AC141: 20 | AD141: shell_02 | AE141: t3021 | AF141: 140001^146|140002^209|130002^29
A142: 72020 | B142: t3011 | C142: 0 | D142: 1 | E142: 3 | F142: 1 | G142: 0 | H142: 0 | I142: 92 | J142: 0 | K142: 750 | L142: 20002 | M142: 5.5 | N142: 0 | O142: 20 | P142: 15000 | Q142: 0 | R142: 0 | S142: 0 | T142: 0 | U142: 0 | V142: 0 | W142: 0 | X142: 0 | Y142: 0 | Z142: 0 | AA142: 0 | AB142: 15 | AC142: 20 | AD142: shell_02 | AE142: t3021 | AF142: 140001^157|140002^224|130002^31
A143: 72021 | B143: t3011 | C143: 0 | D143: 1 | E143: 3 | F143: 1 | G143: 0 | H143: 0 | I143: 96 | J143: 0 | K143: 750 | L143: 20002 | M143: 5 | N143: 0 | O143: 20 | P143: 15000 | Q143: 0 | R143: 0 | S143: 0 | T143: 0 | U143: 0 | V143: 0 | W143: 0 | X143: 0 | Y143: 0 | Z143: 0 | AA143: 0 | AB143: 15 | AC143: 20 | AD143: shell_02 | AE143: t3021 | AF143: 140001^175|140002^250|130002^34
A144: 72022 | B144: t3011 | C144: 0 | D144: 1 | E144: 3 | F144: 1 | G144: 0 | H144: 0 | I144: 100 | J144: 0 | K144: 750 | L144: 20002 | M144: 5 | N144: 0 | O144: 20 | P144: 15000 | Q144: 0 | R144: 0 | S144: 0 | T144: 0 | U144: 0 | V144: 0 | W144: 0 | X144: 0 | Y144: 0 | Z144: 0 | AA144: 0 | AB144: 15 | AC144: 20 | AD144: shell_02 | AE144: t3021 | AF144: 140001^193|140002^276|130002^37
A145: 72023 | B145: t3011 | C145: 0 | D145: 1 | E145: 3 | F145: 1 | G145: 0 | H145: 0 | I145: 104 | J145: 0 | K145: 750 | L145: 20002 | M145: 5 | N145: 0 | O145: 20 | P145: 15000 | Q145: 0 | R145: 0 | S145: 0 | T145: 0 | U145: 0 | V145: 0 | W145: 0 | X145: 0 | Y145: 0 | Z145: 0 | AA145: 0 | AB145: 15 | AC145: 20 | AD145: shell_02 | AE145: t3021 | AF145: 140001^211|140002^302|130002^40
A146: 72024 | B146: t3011 | C146: 0 | D146: 1 | E146: 3 | F146: 1 | G146: 0 | H146: 0 | I146: 108 | J146: 0 | K146: 750 | L146: 20002 | M146: 5 | N146: 0 | O146: 20 | P146: 15000 | Q146: 0 | R146: 0 | S146: 0 | T146: 0 | U146: 0 | V146: 0 | W146: 0 | X146: 0 | Y146: 0 | Z146: 0 | AA146: 0 | AB146: 15 | AC146: 20 | AD146: shell_02 | AE146: t3021 | AF146: 140001^229|140002^327|130002^43
A147: 72025 | B147: t3011 | C147: 0 | D147: 1 | E147: 3 | F147: 1 | G147: 0 | H147: 0 | I147: 112 | J147: 0 | K147: 750 | L147: 20002 | M147: 5 | N147: 0 | O147: 20 | P147: 15000 | Q147: 0 | R147: 0 | S147: 0 | T147: 0 | U147: 0 | V147: 0 | W147: 0 | X147: 0 | Y147: 0 | Z147: 0 | AA147: 0 | AB147: 15 | AC147: 20 | AD147: shell_02 | AE147: t3021 | AF147: 140001^247|140002^353|130002^46
A148: 72026 | B148: t3011 | C148: 0 | D148: 1 | E148: 3 | F148: 1 | G148: 0 | H148: 0 | I148: 116 | J148: 0 | K148: 750 | L148: 20002 | M148: 5 | N148: 0 | O148: 20 | P148: 15000 | Q148: 0 | R148: 0 | S148: 0 | T148: 0 | U148: 0 | V148: 0 | W148: 0 | X148: 0 | Y148: 0 | Z148: 0 | AA148: 0 | AB148: 15 | AC148: 20 | AD148: shell_02 | AE148: t3021 | AF148: 140001^265|140002^379|130002^49
A149: 72027 | B149: t3011 | C149: 0 | D149: 1 | E149: 3 | F149: 1 | G149: 0 | H149: 0 | I149: 120 | J149: 0 | K149: 750 | L149: 20002 | M149: 5 | N149: 0 | O149: 20 | P149: 15000 | Q149: 0 | R149: 0 | S149: 0 | T149: 0 | U149: 0 | V149: 0 | W149: 0 | X149: 0 | Y149: 0 | Z149: 0 | AA149: 0 | AB149: 15 | AC149: 20 | AD149: shell_02 | AE149: t3021 | AF149: 140001^283|140002^405|130002^52
A150: 72028 | B150: t3011 | C150: 0 | D150: 1 | E150: 3 | F150: 1 | G150: 0 | H150: 0 | I150: 124 | J150: 0 | K150: 750 | L150: 20002 | M150: 5 | N150: 0 | O150: 20 | P150: 15000 | Q150: 0 | R150: 0 | S150: 0 | T150: 0 | U150: 0 | V150: 0 | W150: 0 | X150: 0 | Y150: 0 | Z150: 0 | AA150: 0 | AB150: 15 | AC150: 20 | AD150: shell_02 | AE150: t3021 | AF150: 140001^301|140002^431|130002^55
A151: 72029 | B151: t3011 | C151: 0 | D151: 1 | E151: 3 | F151: 1 | G151: 0 | H151: 0 | I151: 128 | J151: 0 | K151: 750 | L151: 20002 | M151: 5 | N151: 0 | O151: 20 | P151: 15000 | Q151: 0 | R151: 0 | S151: 0 | T151: 0 | U151: 0 | V151: 0 | W151: 0 | X151: 0 | Y151: 0 | Z151: 0 | AA151: 0 | AB151: 15 | AC151: 20 | AD151: shell_02 | AE151: t3021 | AF151: 140001^319|140002^456|130002^58
A152: 72030 | B152: t3011 | C152: 0 | D152: 1 | E152: 3 | F152: 1 | G152: 0 | H152: 0 | I152: 132 | J152: 0 | K152: 750 | L152: 20002 | M152: 5 | N152: 0 | O152: 20 | P152: 15000 | Q152: 0 | R152: 0 | S152: 0 | T152: 0 | U152: 0 | V152: 0 | W152: 0 | X152: 0 | Y152: 0 | Z152: 0 | AA152: 0 | AB152: 15 | AC152: 20 | AD152: shell_02 | AE152: t3021 | AF152: 140001^337|140002^482|130002^61
A153: 72031 | B153: t3011 | C153: 0 | D153: 1 | E153: 3 | F153: 1 | G153: 0 | H153: 0 | I153: =I152+6 -> 138 | J153: 0 | K153: 750 | L153: 20002 | M153: 4.5 | N153: 0 | O153: 20 | P153: 15000 | Q153: 0 | R153: 0 | S153: 0 | T153: 0 | U153: 0 | V153: 0 | W153: 0 | X153: 0 | Y153: 0 | Z153: 0 | AA153: 0 | AB153: 15 | AC153: 20 | AD153: shell_02 | AE153: t3021 | AF153: 140001^362|140002^518|130002^65
A154: 72032 | B154: t3011 | C154: 0 | D154: 1 | E154: 3 | F154: 1 | G154: 0 | H154: 0 | I154: =I153+6 -> 144 | J154: 0 | K154: 750 | L154: 20002 | M154: 4.5 | N154: 0 | O154: 20 | P154: 15000 | Q154: 0 | R154: 0 | S154: 0 | T154: 0 | U154: 0 | V154: 0 | W154: 0 | X154: 0 | Y154: 0 | Z154: 0 | AA154: 0 | AB154: 15 | AC154: 20 | AD154: shell_02 | AE154: t3021 | AF154: 140001^387|140002^554|130002^69
A155: 72033 | B155: t3011 | C155: 0 | D155: 1 | E155: 3 | F155: 1 | G155: 0 | H155: 0 | I155: 150 | J155: 0 | K155: 750 | L155: 20002 | M155: 4.5 | N155: 0 | O155: 20 | P155: 15000 | Q155: 0 | R155: 0 | S155: 0 | T155: 0 | U155: 0 | V155: 0 | W155: 0 | X155: 0 | Y155: 0 | Z155: 0 | AA155: 0 | AB155: 15 | AC155: 20 | AD155: shell_02 | AE155: t3021 | AF155: 140001^412|140002^590|130002^73
A156: 72034 | B156: t3011 | C156: 0 | D156: 1 | E156: 3 | F156: 1 | G156: 0 | H156: 0 | I156: 156 | J156: 0 | K156: 750 | L156: 20002 | M156: 4.5 | N156: 0 | O156: 20 | P156: 15000 | Q156: 0 | R156: 0 | S156: 0 | T156: 0 | U156: 0 | V156: 0 | W156: 0 | X156: 0 | Y156: 0 | Z156: 0 | AA156: 0 | AB156: 15 | AC156: 20 | AD156: shell_02 | AE156: t3021 | AF156: 140001^437|140002^625|130002^77
A157: 72035 | B157: t3011 | C157: 0 | D157: 1 | E157: 3 | F157: 1 | G157: 0 | H157: 0 | I157: 162 | J157: 0 | K157: 750 | L157: 20002 | M157: 4.5 | N157: 0 | O157: 20 | P157: 15000 | Q157: 0 | R157: 0 | S157: 0 | T157: 0 | U157: 0 | V157: 0 | W157: 0 | X157: 0 | Y157: 0 | Z157: 0 | AA157: 0 | AB157: 15 | AC157: 20 | AD157: shell_02 | AE157: t3021 | AF157: 140001^462|140002^661|130002^81
A158: 72036 | B158: t3011 | C158: 0 | D158: 1 | E158: 3 | F158: 1 | G158: 0 | H158: 0 | I158: 168 | J158: 0 | K158: 750 | L158: 20002 | M158: 4.5 | N158: 0 | O158: 20 | P158: 15000 | Q158: 0 | R158: 0 | S158: 0 | T158: 0 | U158: 0 | V158: 0 | W158: 0 | X158: 0 | Y158: 0 | Z158: 0 | AA158: 0 | AB158: 15 | AC158: 20 | AD158: shell_02 | AE158: t3021 | AF158: 140001^487|140002^697|130002^85
A159: 72037 | B159: t3011 | C159: 0 | D159: 1 | E159: 3 | F159: 1 | G159: 0 | H159: 0 | I159: 174 | J159: 0 | K159: 750 | L159: 20002 | M159: 4.5 | N159: 0 | O159: 20 | P159: 15000 | Q159: 0 | R159: 0 | S159: 0 | T159: 0 | U159: 0 | V159: 0 | W159: 0 | X159: 0 | Y159: 0 | Z159: 0 | AA159: 0 | AB159: 15 | AC159: 20 | AD159: shell_02 | AE159: t3021 | AF159: 140001^512|140002^733|130002^89
A160: 72038 | B160: t3011 | C160: 0 | D160: 1 | E160: 3 | F160: 1 | G160: 0 | H160: 0 | I160: 180 | J160: 0 | K160: 750 | L160: 20002 | M160: 4.5 | N160: 0 | O160: 20 | P160: 15000 | Q160: 0 | R160: 0 | S160: 0 | T160: 0 | U160: 0 | V160: 0 | W160: 0 | X160: 0 | Y160: 0 | Z160: 0 | AA160: 0 | AB160: 15 | AC160: 20 | AD160: shell_02 | AE160: t3021 | AF160: 140001^537|140002^769|130002^93
A161: 72039 | B161: t3011 | C161: 0 | D161: 1 | E161: 3 | F161: 1 | G161: 0 | H161: 0 | I161: 186 | J161: 0 | K161: 750 | L161: 20002 | M161: 4.5 | N161: 0 | O161: 20 | P161: 15000 | Q161: 0 | R161: 0 | S161: 0 | T161: 0 | U161: 0 | V161: 0 | W161: 0 | X161: 0 | Y161: 0 | Z161: 0 | AA161: 0 | AB161: 15 | AC161: 20 | AD161: shell_02 | AE161: t3021 | AF161: 140001^562|140002^804|130002^97
A162: 72040 | B162: t3011 | C162: 0 | D162: 1 | E162: 3 | F162: 1 | G162: 0 | H162: 0 | I162: 192 | J162: 0 | K162: 750 | L162: 20002 | M162: 4.5 | N162: 0 | O162: 20 | P162: 15000 | Q162: 0 | R162: 0 | S162: 0 | T162: 0 | U162: 0 | V162: 0 | W162: 0 | X162: 0 | Y162: 0 | Z162: 0 | AA162: 0 | AB162: 15 | AC162: 20 | AD162: shell_02 | AE162: t3021 | AF162: 140001^587|140002^840|130002^101
A163: 72041 | B163: t3011 | C163: 0 | D163: 1 | E163: 3 | F163: 1 | G163: 0 | H163: 0 | I163: 198 | J163: 0 | K163: 750 | L163: 20002 | M163: 4 | N163: 0 | O163: 20 | P163: 15000 | Q163: 0 | R163: 0 | S163: 0 | T163: 0 | U163: 0 | V163: 0 | W163: 0 | X163: 0 | Y163: 0 | Z163: 0 | AA163: 0 | AB163: 15 | AC163: 20 | AD163: shell_02 | AE163: t3021 | AF163: 140001^649|140002^929|130002^107
A164: 72042 | B164: t3011 | C164: 0 | D164: 1 | E164: 3 | F164: 1 | G164: 0 | H164: 0 | I164: 204 | J164: 0 | K164: 750 | L164: 20002 | M164: 4 | N164: 0 | O164: 20 | P164: 15000 | Q164: 0 | R164: 0 | S164: 0 | T164: 0 | U164: 0 | V164: 0 | W164: 0 | X164: 0 | Y164: 0 | Z164: 0 | AA164: 0 | AB164: 15 | AC164: 20 | AD164: shell_02 | AE164: t3021 | AF164: 140001^711|140002^1018|130002^113
A165: 72043 | B165: t3011 | C165: 0 | D165: 1 | E165: 3 | F165: 1 | G165: 0 | H165: 0 | I165: 210 | J165: 0 | K165: 750 | L165: 20002 | M165: 4 | N165: 0 | O165: 20 | P165: 15000 | Q165: 0 | R165: 0 | S165: 0 | T165: 0 | U165: 0 | V165: 0 | W165: 0 | X165: 0 | Y165: 0 | Z165: 0 | AA165: 0 | AB165: 15 | AC165: 20 | AD165: shell_02 | AE165: t3021 | AF165: 140001^773|140002^1107|130002^119
A166: 72044 | B166: t3011 | C166: 0 | D166: 1 | E166: 3 | F166: 1 | G166: 0 | H166: 0 | I166: 216 | J166: 0 | K166: 750 | L166: 20002 | M166: 4 | N166: 0 | O166: 20 | P166: 15000 | Q166: 0 | R166: 0 | S166: 0 | T166: 0 | U166: 0 | V166: 0 | W166: 0 | X166: 0 | Y166: 0 | Z166: 0 | AA166: 0 | AB166: 15 | AC166: 20 | AD166: shell_02 | AE166: t3021 | AF166: 140001^835|140002^1195|130002^125
A167: 72045 | B167: t3011 | C167: 0 | D167: 1 | E167: 3 | F167: 1 | G167: 0 | H167: 0 | I167: 222 | J167: 0 | K167: 750 | L167: 20002 | M167: 4 | N167: 0 | O167: 20 | P167: 15000 | Q167: 0 | R167: 0 | S167: 0 | T167: 0 | U167: 0 | V167: 0 | W167: 0 | X167: 0 | Y167: 0 | Z167: 0 | AA167: 0 | AB167: 15 | AC167: 20 | AD167: shell_02 | AE167: t3021 | AF167: 140001^897|140002^1284|130002^131
A168: 72046 | B168: t3011 | C168: 0 | D168: 1 | E168: 3 | F168: 1 | G168: 0 | H168: 0 | I168: 228 | J168: 0 | K168: 750 | L168: 20002 | M168: 4 | N168: 0 | O168: 20 | P168: 15000 | Q168: 0 | R168: 0 | S168: 0 | T168: 0 | U168: 0 | V168: 0 | W168: 0 | X168: 0 | Y168: 0 | Z168: 0 | AA168: 0 | AB168: 15 | AC168: 20 | AD168: shell_02 | AE168: t3021 | AF168: 140001^959|140002^1373|130002^137
A169: 72047 | B169: t3011 | C169: 0 | D169: 1 | E169: 3 | F169: 1 | G169: 0 | H169: 0 | I169: 234 | J169: 0 | K169: 750 | L169: 20002 | M169: 4 | N169: 0 | O169: 20 | P169: 15000 | Q169: 0 | R169: 0 | S169: 0 | T169: 0 | U169: 0 | V169: 0 | W169: 0 | X169: 0 | Y169: 0 | Z169: 0 | AA169: 0 | AB169: 15 | AC169: 20 | AD169: shell_02 | AE169: t3021 | AF169: 140001^1021|140002^1462|130002^143
A170: 72048 | B170: t3011 | C170: 0 | D170: 1 | E170: 3 | F170: 1 | G170: 0 | H170: 0 | I170: 240 | J170: 0 | K170: 750 | L170: 20002 | M170: 4 | N170: 0 | O170: 20 | P170: 15000 | Q170: 0 | R170: 0 | S170: 0 | T170: 0 | U170: 0 | V170: 0 | W170: 0 | X170: 0 | Y170: 0 | Z170: 0 | AA170: 0 | AB170: 15 | AC170: 20 | AD170: shell_02 | AE170: t3021 | AF170: 140001^1083|140002^1550|130002^149
A171: 72049 | B171: t3011 | C171: 0 | D171: 1 | E171: 3 | F171: 1 | G171: 0 | H171: 0 | I171: 246 | J171: 0 | K171: 750 | L171: 20002 | M171: 4 | N171: 0 | O171: 20 | P171: 15000 | Q171: 0 | R171: 0 | S171: 0 | T171: 0 | U171: 0 | V171: 0 | W171: 0 | X171: 0 | Y171: 0 | Z171: 0 | AA171: 0 | AB171: 15 | AC171: 20 | AD171: shell_02 | AE171: t3021 | AF171: 140001^1145|140002^1639|130002^155
A172: 72050 | B172: t3011 | C172: 0 | D172: 1 | E172: 3 | F172: 1 | G172: 0 | H172: 0 | I172: 252 | J172: 0 | K172: 750 | L172: 20002 | M172: 4 | N172: 0 | O172: 20 | P172: 15000 | Q172: 0 | R172: 0 | S172: 0 | T172: 0 | U172: 0 | V172: 0 | W172: 0 | X172: 0 | Y172: 0 | Z172: 0 | AA172: 0 | AB172: 15 | AC172: 20 | AD172: shell_02 | AE172: t3021 | AF172: 140001^1207|140002^1728|130002^161
A173: 72051 | B173: t3011 | C173: 0 | D173: 1 | E173: 3 | F173: 1 | G173: 0 | H173: 0 | I173: =I172+8 -> 260 | J173: 0 | K173: 750 | L173: 20002 | M173: 3.5 | N173: 0 | O173: 20 | P173: 15000 | Q173: 0 | R173: 0 | S173: 0 | T173: 0 | U173: 0 | V173: 0 | W173: 0 | X173: 0 | Y173: 0 | Z173: 0 | AA173: 0 | AB173: 15 | AC173: 20 | AD173: shell_02 | AE173: t3021 | AF173: 140001^1303|140002^1866|130002^168
A174: 72052 | B174: t3011 | C174: 0 | D174: 1 | E174: 3 | F174: 1 | G174: 0 | H174: 0 | I174: =I173+8 -> 268 | J174: 0 | K174: 750 | L174: 20002 | M174: 3.5 | N174: 0 | O174: 20 | P174: 15000 | Q174: 0 | R174: 0 | S174: 0 | T174: 0 | U174: 0 | V174: 0 | W174: 0 | X174: 0 | Y174: 0 | Z174: 0 | AA174: 0 | AB174: 15 | AC174: 20 | AD174: shell_02 | AE174: t3021 | AF174: 140001^1399|140002^2003|130002^175
A175: 72053 | B175: t3011 | C175: 0 | D175: 1 | E175: 3 | F175: 1 | G175: 0 | H175: 0 | I175: 276 | J175: 0 | K175: 750 | L175: 20002 | M175: 3.5 | N175: 0 | O175: 20 | P175: 15000 | Q175: 0 | R175: 0 | S175: 0 | T175: 0 | U175: 0 | V175: 0 | W175: 0 | X175: 0 | Y175: 0 | Z175: 0 | AA175: 0 | AB175: 15 | AC175: 20 | AD175: shell_02 | AE175: t3021 | AF175: 140001^1495|140002^2140|130002^182
A176: 72054 | B176: t3011 | C176: 0 | D176: 1 | E176: 3 | F176: 1 | G176: 0 | H176: 0 | I176: 284 | J176: 0 | K176: 750 | L176: 20002 | M176: 3.5 | N176: 0 | O176: 20 | P176: 15000 | Q176: 0 | R176: 0 | S176: 0 | T176: 0 | U176: 0 | V176: 0 | W176: 0 | X176: 0 | Y176: 0 | Z176: 0 | AA176: 0 | AB176: 15 | AC176: 20 | AD176: shell_02 | AE176: t3021 | AF176: 140001^1591|140002^2278|130002^189
A177: 72055 | B177: t3011 | C177: 0 | D177: 1 | E177: 3 | F177: 1 | G177: 0 | H177: 0 | I177: 292 | J177: 0 | K177: 750 | L177: 20002 | M177: 3.5 | N177: 0 | O177: 20 | P177: 15000 | Q177: 0 | R177: 0 | S177: 0 | T177: 0 | U177: 0 | V177: 0 | W177: 0 | X177: 0 | Y177: 0 | Z177: 0 | AA177: 0 | AB177: 15 | AC177: 20 | AD177: shell_02 | AE177: t3021 | AF177: 140001^1687|140002^2415|130002^196
A178: 72056 | B178: t3011 | C178: 0 | D178: 1 | E178: 3 | F178: 1 | G178: 0 | H178: 0 | I178: 300 | J178: 0 | K178: 750 | L178: 20002 | M178: 3.5 | N178: 0 | O178: 20 | P178: 15000 | Q178: 0 | R178: 0 | S178: 0 | T178: 0 | U178: 0 | V178: 0 | W178: 0 | X178: 0 | Y178: 0 | Z178: 0 | AA178: 0 | AB178: 15 | AC178: 20 | AD178: shell_02 | AE178: t3021 | AF178: 140001^1783|140002^2553|130002^203
A179: 72057 | B179: t3011 | C179: 0 | D179: 1 | E179: 3 | F179: 1 | G179: 0 | H179: 0 | I179: 308 | J179: 0 | K179: 750 | L179: 20002 | M179: 3.5 | N179: 0 | O179: 20 | P179: 15000 | Q179: 0 | R179: 0 | S179: 0 | T179: 0 | U179: 0 | V179: 0 | W179: 0 | X179: 0 | Y179: 0 | Z179: 0 | AA179: 0 | AB179: 15 | AC179: 20 | AD179: shell_02 | AE179: t3021 | AF179: 140001^1879|140002^2690|130002^210
A180: 72058 | B180: t3011 | C180: 0 | D180: 1 | E180: 3 | F180: 1 | G180: 0 | H180: 0 | I180: 316 | J180: 0 | K180: 750 | L180: 20002 | M180: 3.5 | N180: 0 | O180: 20 | P180: 15000 | Q180: 0 | R180: 0 | S180: 0 | T180: 0 | U180: 0 | V180: 0 | W180: 0 | X180: 0 | Y180: 0 | Z180: 0 | AA180: 0 | AB180: 15 | AC180: 20 | AD180: shell_02 | AE180: t3021 | AF180: 140001^1975|140002^2828|130002^217
A181: 72059 | B181: t3011 | C181: 0 | D181: 1 | E181: 3 | F181: 1 | G181: 0 | H181: 0 | I181: 324 | J181: 0 | K181: 750 | L181: 20002 | M181: 3.5 | N181: 0 | O181: 20 | P181: 15000 | Q181: 0 | R181: 0 | S181: 0 | T181: 0 | U181: 0 | V181: 0 | W181: 0 | X181: 0 | Y181: 0 | Z181: 0 | AA181: 0 | AB181: 15 | AC181: 20 | AD181: shell_02 | AE181: t3021 | AF181: 140001^2071|140002^2965|130002^224
A182: 72060 | B182: t3011 | C182: 0 | D182: 1 | E182: 3 | F182: 1 | G182: 0 | H182: 0 | I182: 332 | J182: 0 | K182: 750 | L182: 20002 | M182: 3.5 | N182: 0 | O182: 20 | P182: 15000 | Q182: 0 | R182: 0 | S182: 0 | T182: 0 | U182: 0 | V182: 0 | W182: 0 | X182: 0 | Y182: 0 | Z182: 0 | AA182: 0 | AB182: 15 | AC182: 20 | AD182: shell_02 | AE182: t3021 | AF182: 140001^2167|140002^3103|130002^231
A183: 72061 | B183: t3011 | C183: 0 | D183: 1 | E183: 3 | F183: 1 | G183: 0 | H183: 0 | I183: =I182+10 -> 342 | J183: 0 | K183: 750 | L183: 20002 | M183: 3 | N183: 0 | O183: 20 | P183: 15000 | Q183: 0 | R183: 0 | S183: 0 | T183: 0 | U183: 0 | V183: 0 | W183: 0 | X183: 0 | Y183: 0 | Z183: 0 | AA183: 0 | AB183: 15 | AC183: 20 | AD183: shell_02 | AE183: t3021 | AF183: 140001^2335|140002^3343|130002^240
A184: 72062 | B184: t3011 | C184: 0 | D184: 1 | E184: 3 | F184: 1 | G184: 0 | H184: 0 | I184: =I183+10 -> 352 | J184: 0 | K184: 750 | L184: 20002 | M184: 3 | N184: 0 | O184: 20 | P184: 15000 | Q184: 0 | R184: 0 | S184: 0 | T184: 0 | U184: 0 | V184: 0 | W184: 0 | X184: 0 | Y184: 0 | Z184: 0 | AA184: 0 | AB184: 15 | AC184: 20 | AD184: shell_02 | AE184: t3021 | AF184: 140001^2503|140002^3584|130002^249
A185: 72063 | B185: t3011 | C185: 0 | D185: 1 | E185: 3 | F185: 1 | G185: 0 | H185: 0 | I185: 362 | J185: 0 | K185: 750 | L185: 20002 | M185: 3 | N185: 0 | O185: 20 | P185: 15000 | Q185: 0 | R185: 0 | S185: 0 | T185: 0 | U185: 0 | V185: 0 | W185: 0 | X185: 0 | Y185: 0 | Z185: 0 | AA185: 0 | AB185: 15 | AC185: 20 | AD185: shell_02 | AE185: t3021 | AF185: 140001^2671|140002^3825|130002^258
A186: 72064 | B186: t3011 | C186: 0 | D186: 1 | E186: 3 | F186: 1 | G186: 0 | H186: 0 | I186: 372 | J186: 0 | K186: 750 | L186: 20002 | M186: 3 | N186: 0 | O186: 20 | P186: 15000 | Q186: 0 | R186: 0 | S186: 0 | T186: 0 | U186: 0 | V186: 0 | W186: 0 | X186: 0 | Y186: 0 | Z186: 0 | AA186: 0 | AB186: 15 | AC186: 20 | AD186: shell_02 | AE186: t3021 | AF186: 140001^2839|140002^4065|130002^267
A187: 72065 | B187: t3011 | C187: 0 | D187: 1 | E187: 3 | F187: 1 | G187: 0 | H187: 0 | I187: 382 | J187: 0 | K187: 750 | L187: 20002 | M187: 3 | N187: 0 | O187: 20 | P187: 15000 | Q187: 0 | R187: 0 | S187: 0 | T187: 0 | U187: 0 | V187: 0 | W187: 0 | X187: 0 | Y187: 0 | Z187: 0 | AA187: 0 | AB187: 15 | AC187: 20 | AD187: shell_02 | AE187: t3021 | AF187: 140001^3007|140002^4306|130002^276
A188: 72066 | B188: t3011 | C188: 0 | D188: 1 | E188: 3 | F188: 1 | G188: 0 | H188: 0 | I188: 392 | J188: 0 | K188: 750 | L188: 20002 | M188: 3 | N188: 0 | O188: 20 | P188: 15000 | Q188: 0 | R188: 0 | S188: 0 | T188: 0 | U188: 0 | V188: 0 | W188: 0 | X188: 0 | Y188: 0 | Z188: 0 | AA188: 0 | AB188: 15 | AC188: 20 | AD188: shell_02 | AE188: t3021 | AF188: 140001^3175|140002^4546|130002^285
A189: 72067 | B189: t3011 | C189: 0 | D189: 1 | E189: 3 | F189: 1 | G189: 0 | H189: 0 | I189: 402 | J189: 0 | K189: 750 | L189: 20002 | M189: 3 | N189: 0 | O189: 20 | P189: 15000 | Q189: 0 | R189: 0 | S189: 0 | T189: 0 | U189: 0 | V189: 0 | W189: 0 | X189: 0 | Y189: 0 | Z189: 0 | AA189: 0 | AB189: 15 | AC189: 20 | AD189: shell_02 | AE189: t3021 | AF189: 140001^3343|140002^4787|130002^294
A190: 72068 | B190: t3011 | C190: 0 | D190: 1 | E190: 3 | F190: 1 | G190: 0 | H190: 0 | I190: 412 | J190: 0 | K190: 750 | L190: 20002 | M190: 3 | N190: 0 | O190: 20 | P190: 15000 | Q190: 0 | R190: 0 | S190: 0 | T190: 0 | U190: 0 | V190: 0 | W190: 0 | X190: 0 | Y190: 0 | Z190: 0 | AA190: 0 | AB190: 15 | AC190: 20 | AD190: shell_02 | AE190: t3021 | AF190: 140001^3511|140002^5028|130002^303
A191: 72069 | B191: t3011 | C191: 0 | D191: 1 | E191: 3 | F191: 1 | G191: 0 | H191: 0 | I191: 422 | J191: 0 | K191: 750 | L191: 20002 | M191: 3 | N191: 0 | O191: 20 | P191: 15000 | Q191: 0 | R191: 0 | S191: 0 | T191: 0 | U191: 0 | V191: 0 | W191: 0 | X191: 0 | Y191: 0 | Z191: 0 | AA191: 0 | AB191: 15 | AC191: 20 | AD191: shell_02 | AE191: t3021 | AF191: 140001^3679|140002^5268|130002^312
A192: 72070 | B192: t3011 | C192: 0 | D192: 1 | E192: 3 | F192: 1 | G192: 0 | H192: 0 | I192: 432 | J192: 0 | K192: 750 | L192: 20002 | M192: 3 | N192: 0 | O192: 20 | P192: 15000 | Q192: 0 | R192: 0 | S192: 0 | T192: 0 | U192: 0 | V192: 0 | W192: 0 | X192: 0 | Y192: 0 | Z192: 0 | AA192: 0 | AB192: 15 | AC192: 20 | AD192: shell_02 | AE192: t3021 | AF192: 140001^3837|140002^5494|130002^321
A193: 72071 | B193: t3011 | C193: 0 | D193: 1 | E193: 3 | F193: 1 | G193: 0 | H193: 0 | I193: 442 | J193: 0 | K193: 750 | L193: 20002 | M193: 2.6 | N193: 0 | O193: 20 | P193: 15000 | Q193: 0 | R193: 0 | S193: 0 | T193: 0 | U193: 0 | V193: 0 | W193: 0 | X193: 0 | Y193: 0 | Z193: 0 | AA193: 0 | AB193: 15 | AC193: 20 | AD193: shell_02 | AE193: t3021 | AF193: 140001^3995|140002^5721|130002^333
A194: 72072 | B194: t3011 | C194: 0 | D194: 1 | E194: 3 | F194: 1 | G194: 0 | H194: 0 | I194: 452 | J194: 0 | K194: 750 | L194: 20002 | M194: 2.6 | N194: 0 | O194: 20 | P194: 15000 | Q194: 0 | R194: 0 | S194: 0 | T194: 0 | U194: 0 | V194: 0 | W194: 0 | X194: 0 | Y194: 0 | Z194: 0 | AA194: 0 | AB194: 15 | AC194: 20 | AD194: shell_02 | AE194: t3021 | AF194: 140001^4153|140002^5947|130002^345
A195: 72073 | B195: t3011 | C195: 0 | D195: 1 | E195: 3 | F195: 1 | G195: 0 | H195: 0 | I195: 462 | J195: 0 | K195: 750 | L195: 20002 | M195: 2.6 | N195: 0 | O195: 20 | P195: 15000 | Q195: 0 | R195: 0 | S195: 0 | T195: 0 | U195: 0 | V195: 0 | W195: 0 | X195: 0 | Y195: 0 | Z195: 0 | AA195: 0 | AB195: 15 | AC195: 20 | AD195: shell_02 | AE195: t3021 | AF195: 140001^4311|140002^6173|130002^357
A196: 72074 | B196: t3011 | C196: 0 | D196: 1 | E196: 3 | F196: 1 | G196: 0 | H196: 0 | I196: 472 | J196: 0 | K196: 750 | L196: 20002 | M196: 2.6 | N196: 0 | O196: 20 | P196: 15000 | Q196: 0 | R196: 0 | S196: 0 | T196: 0 | U196: 0 | V196: 0 | W196: 0 | X196: 0 | Y196: 0 | Z196: 0 | AA196: 0 | AB196: 15 | AC196: 20 | AD196: shell_02 | AE196: t3021 | AF196: 140001^4469|140002^6400|130002^369
A197: 72075 | B197: t3011 | C197: 0 | D197: 1 | E197: 3 | F197: 1 | G197: 0 | H197: 0 | I197: 482 | J197: 0 | K197: 750 | L197: 20002 | M197: 2.6 | N197: 0 | O197: 20 | P197: 15000 | Q197: 0 | R197: 0 | S197: 0 | T197: 0 | U197: 0 | V197: 0 | W197: 0 | X197: 0 | Y197: 0 | Z197: 0 | AA197: 0 | AB197: 15 | AC197: 20 | AD197: shell_02 | AE197: t3021 | AF197: 140001^4627|140002^6626|130002^381
A198: 72076 | B198: t3011 | C198: 0 | D198: 1 | E198: 3 | F198: 1 | G198: 0 | H198: 0 | I198: 492 | J198: 0 | K198: 750 | L198: 20002 | M198: 2.6 | N198: 0 | O198: 20 | P198: 15000 | Q198: 0 | R198: 0 | S198: 0 | T198: 0 | U198: 0 | V198: 0 | W198: 0 | X198: 0 | Y198: 0 | Z198: 0 | AA198: 0 | AB198: 15 | AC198: 20 | AD198: shell_02 | AE198: t3021 | AF198: 140001^4785|140002^6852|130002^393
A199: 72077 | B199: t3011 | C199: 0 | D199: 1 | E199: 3 | F199: 1 | G199: 0 | H199: 0 | I199: 502 | J199: 0 | K199: 750 | L199: 20002 | M199: 2.6 | N199: 0 | O199: 20 | P199: 15000 | Q199: 0 | R199: 0 | S199: 0 | T199: 0 | U199: 0 | V199: 0 | W199: 0 | X199: 0 | Y199: 0 | Z199: 0 | AA199: 0 | AB199: 15 | AC199: 20 | AD199: shell_02 | AE199: t3021 | AF199: 140001^4943|140002^7078|130002^405
A200: 72078 | B200: t3011 | C200: 0 | D200: 1 | E200: 3 | F200: 1 | G200: 0 | H200: 0 | I200: 512 | J200: 0 | K200: 750 | L200: 20002 | M200: 2.6 | N200: 0 | O200: 20 | P200: 15000 | Q200: 0 | R200: 0 | S200: 0 | T200: 0 | U200: 0 | V200: 0 | W200: 0 | X200: 0 | Y200: 0 | Z200: 0 | AA200: 0 | AB200: 15 | AC200: 20 | AD200: shell_02 | AE200: t3021 | AF200: 140001^5101|140002^7305|130002^417
... 42 more rows

Sheet 注释
C1: 木材 | F1: 石矿 | I1: 精炼石
A2: 71001 | B2: 140001 | C2: =FLOOR(F2*1.4321,1) -> 28 | D2: =_xlfn.TEXTJOIN("^",,B2:C2) -> 140001^28 | E2: 140002 | F2: 20 | G2: =_xlfn.TEXTJOIN("^",,E2:F2) -> 140002^20 | H2: 130002 | I2: 2 | J2: =_xlfn.TEXTJOIN("^",,H2:I2) -> 130002^2 | K2: =_xlfn.TEXTJOIN("|",,D2,G2,J2) -> 140001^28|140002^20|130002^2
A3: 71002 | B3: 140001 | C3: =FLOOR(F3*1.4321,1) -> 32 | D3: =_xlfn.TEXTJOIN("^",,B3:C3) -> 140001^32 | E3: 140002 | F3: 23 | G3: =_xlfn.TEXTJOIN("^",,E3:F3) -> 140002^23 | H3: 130002 | I3: 3 | J3: =_xlfn.TEXTJOIN("^",,H3:I3) -> 130002^3 | K3: =_xlfn.TEXTJOIN("|",,D3,G3,J3) -> 140001^32|140002^23|130002^3 | R3: 4.5 | S3: =R3*24 -> 108
A4: 71003 | B4: 140001 | C4: 37 | D4: 140001^37 | E4: 140002 | F4: 26 | G4: 140002^26 | H4: 130002 | I4: 4 | J4: 130002^4 | K4: 140001^37|140002^26|130002^4 | R4: 7 | S4: =R4*24 -> 168
A5: 71004 | B5: 140001 | C5: 41 | D5: 140001^41 | E5: 140002 | F5: 29 | G5: 140002^29 | H5: 130002 | I5: 5 | J5: 130002^5 | K5: 140001^41|140002^29|130002^5 | R5: 8.5 | S5: 204
A6: 71005 | B6: 140001 | C6: 45 | D6: 140001^45 | E6: 140002 | F6: 32 | G6: 140002^32 | H6: 130002 | I6: 6 | J6: 130002^6 | K6: 140001^45|140002^32|130002^6 | R6: 12 | S6: 288
A7: 71006 | B7: 140001 | C7: 50 | D7: 140001^50 | E7: 140002 | F7: 35 | G7: 140002^35 | H7: 130002 | I7: 7 | J7: 130002^7 | K7: 140001^50|140002^35|130002^7 | R7: 15.5 | S7: 372
A8: 71007 | B8: 140001 | C8: 54 | D8: 140001^54 | E8: 140002 | F8: 38 | G8: 140002^38 | H8: 130002 | I8: 8 | J8: 130002^8 | K8: 140001^54|140002^38|130002^8 | R8: 19.5 | S8: 468
A9: 71008 | B9: 140001 | C9: 58 | D9: 140001^58 | E9: 140002 | F9: 41 | G9: 140002^41 | H9: 130002 | I9: 9 | J9: 130002^9 | K9: 140001^58|140002^41|130002^9 | R9: 24.5 | S9: 588
A10: 71009 | B10: 140001 | C10: 63 | D10: 140001^63 | E10: 140002 | F10: 44 | G10: 140002^44 | H10: 130002 | I10: 10 | J10: 130002^10 | K10: 140001^63|140002^44|130002^10 | R10: 29.5 | S10: 708
A11: 71010 | B11: 140001 | C11: 67 | D11: 140001^67 | E11: 140002 | F11: 47 | G11: 140002^47 | H11: 130002 | I11: 11 | J11: 130002^11 | K11: 140001^67|140002^47|130002^11 | R11: 35.5 | S11: 852
A12: 71011 | B12: 140001 | C12: 83 | D12: 140001^83 | E12: 140002 | F12: 58 | G12: 140002^58 | H12: 130002 | I12: 13 | J12: 130002^13 | K12: 140001^83|140002^58|130002^13 | R12: 45.5 | S12: 1092
A13: 71012 | B13: 140001 | C13: 98 | D13: 140001^98 | E13: 140002 | F13: 69 | G13: 140002^69 | H13: 130002 | I13: 15 | J13: 130002^15 | K13: 140001^98|140002^69|130002^15
A14: 71013 | B14: 140001 | C14: 114 | D14: 140001^114 | E14: 140002 | F14: 80 | G14: 140002^80 | H14: 130002 | I14: 17 | J14: 130002^17 | K14: 140001^114|140002^80|130002^17
A15: 71014 | B15: 140001 | C15: 130 | D15: 140001^130 | E15: 140002 | F15: 91 | G15: 140002^91 | H15: 130002 | I15: 19 | J15: 130002^19 | K15: 140001^130|140002^91|130002^19
A16: 71015 | B16: 140001 | C16: 146 | D16: 140001^146 | E16: 140002 | F16: 102 | G16: 140002^102 | H16: 130002 | I16: 21 | J16: 130002^21 | K16: 140001^146|140002^102|130002^21 | R16: 180 | S16: =R16*6 -> 1080
A17: 71016 | B17: 140001 | C17: 161 | D17: 140001^161 | E17: 140002 | F17: 113 | G17: 140002^113 | H17: 130002 | I17: 23 | J17: 130002^23 | K17: 140001^161|140002^113|130002^23 | R17: 360 | S17: =R17*6 -> 2160
A18: 71017 | B18: 140001 | C18: 177 | D18: 140001^177 | E18: 140002 | F18: 124 | G18: 140002^124 | H18: 130002 | I18: 25 | J18: 130002^25 | K18: 140001^177|140002^124|130002^25 | R18: 720 | S18: 4320
A19: 71018 | B19: 140001 | C19: 193 | D19: 140001^193 | E19: 140002 | F19: 135 | G19: 140002^135 | H19: 130002 | I19: 27 | J19: 130002^27 | K19: 140001^193|140002^135|130002^27 | R19: 1080 | S19: 6480
A20: 71019 | B20: 140001 | C20: 209 | D20: 140001^209 | E20: 140002 | F20: 146 | G20: 140002^146 | H20: 130002 | I20: 29 | J20: 130002^29 | K20: 140001^209|140002^146|130002^29 | R20: 1440 | S20: 8640
A21: 71020 | B21: 140001 | C21: 224 | D21: 140001^224 | E21: 140002 | F21: 157 | G21: 140002^157 | H21: 130002 | I21: 31 | J21: 130002^31 | K21: 140001^224|140002^157|130002^31 | R21: 1800 | S21: 10800
A22: 71021 | B22: 140001 | C22: 250 | D22: 140001^250 | E22: 140002 | F22: 175 | G22: 140002^175 | H22: 130002 | I22: 34 | J22: 130002^34 | K22: 140001^250|140002^175|130002^34 | R22: 2160 | S22: 12960
A23: 71022 | B23: 140001 | C23: 276 | D23: 140001^276 | E23: 140002 | F23: 193 | G23: 140002^193 | H23: 130002 | I23: 37 | J23: 130002^37 | K23: 140001^276|140002^193|130002^37 | R23: 2520 | S23: 15120
A24: 71023 | B24: 140001 | C24: 302 | D24: 140001^302 | E24: 140002 | F24: 211 | G24: 140002^211 | H24: 130002 | I24: 40 | J24: 130002^40 | K24: 140001^302|140002^211|130002^40 | R24: 2880 | S24: 17280
A25: 71024 | B25: 140001 | C25: 327 | D25: 140001^327 | E25: 140002 | F25: 229 | G25: 140002^229 | H25: 130002 | I25: 43 | J25: 130002^43 | K25: 140001^327|140002^229|130002^43 | R25: 3240 | S25: 19440
A26: 71025 | B26: 140001 | C26: 353 | D26: 140001^353 | E26: 140002 | F26: 247 | G26: 140002^247 | H26: 130002 | I26: 46 | J26: 130002^46 | K26: 140001^353|140002^247|130002^46
A27: 71026 | B27: 140001 | C27: 379 | D27: 140001^379 | E27: 140002 | F27: 265 | G27: 140002^265 | H27: 130002 | I27: 49 | J27: 130002^49 | K27: 140001^379|140002^265|130002^49
A28: 71027 | B28: 140001 | C28: 405 | D28: 140001^405 | E28: 140002 | F28: 283 | G28: 140002^283 | H28: 130002 | I28: 52 | J28: 130002^52 | K28: 140001^405|140002^283|130002^52
A29: 71028 | B29: 140001 | C29: 431 | D29: 140001^431 | E29: 140002 | F29: 301 | G29: 140002^301 | H29: 130002 | I29: 55 | J29: 130002^55 | K29: 140001^431|140002^301|130002^55
A30: 71029 | B30: 140001 | C30: 456 | D30: 140001^456 | E30: 140002 | F30: 319 | G30: 140002^319 | H30: 130002 | I30: 58 | J30: 130002^58 | K30: 140001^456|140002^319|130002^58
A31: 71030 | B31: 140001 | C31: 482 | D31: 140001^482 | E31: 140002 | F31: 337 | G31: 140002^337 | H31: 130002 | I31: 61 | J31: 130002^61 | K31: 140001^482|140002^337|130002^61
A32: 71031 | B32: 140001 | C32: 518 | D32: 140001^518 | E32: 140002 | F32: 362 | G32: 140002^362 | H32: 130002 | I32: 65 | J32: 130002^65 | K32: 140001^518|140002^362|130002^65
A33: 71032 | B33: 140001 | C33: 554 | D33: 140001^554 | E33: 140002 | F33: 387 | G33: 140002^387 | H33: 130002 | I33: 69 | J33: 130002^69 | K33: 140001^554|140002^387|130002^69
A34: 71033 | B34: 140001 | C34: 590 | D34: 140001^590 | E34: 140002 | F34: 412 | G34: 140002^412 | H34: 130002 | I34: 73 | J34: 130002^73 | K34: 140001^590|140002^412|130002^73
A35: 71034 | B35: 140001 | C35: 625 | D35: 140001^625 | E35: 140002 | F35: 437 | G35: 140002^437 | H35: 130002 | I35: 77 | J35: 130002^77 | K35: 140001^625|140002^437|130002^77
A36: 71035 | B36: 140001 | C36: 661 | D36: 140001^661 | E36: 140002 | F36: 462 | G36: 140002^462 | H36: 130002 | I36: 81 | J36: 130002^81 | K36: 140001^661|140002^462|130002^81
A37: 71036 | B37: 140001 | C37: 697 | D37: 140001^697 | E37: 140002 | F37: 487 | G37: 140002^487 | H37: 130002 | I37: 85 | J37: 130002^85 | K37: 140001^697|140002^487|130002^85
A38: 71037 | B38: 140001 | C38: 733 | D38: 140001^733 | E38: 140002 | F38: 512 | G38: 140002^512 | H38: 130002 | I38: 89 | J38: 130002^89 | K38: 140001^733|140002^512|130002^89
A39: 71038 | B39: 140001 | C39: 769 | D39: 140001^769 | E39: 140002 | F39: 537 | G39: 140002^537 | H39: 130002 | I39: 93 | J39: 130002^93 | K39: 140001^769|140002^537|130002^93
A40: 71039 | B40: 140001 | C40: 804 | D40: 140001^804 | E40: 140002 | F40: 562 | G40: 140002^562 | H40: 130002 | I40: 97 | J40: 130002^97 | K40: 140001^804|140002^562|130002^97
A41: 71040 | B41: 140001 | C41: 840 | D41: 140001^840 | E41: 140002 | F41: 587 | G41: 140002^587 | H41: 130002 | I41: 101 | J41: 130002^101 | K41: 140001^840|140002^587|130002^101
A42: 71041 | B42: 140001 | C42: 929 | D42: 140001^929 | E42: 140002 | F42: 649 | G42: 140002^649 | H42: 130002 | I42: 107 | J42: 130002^107 | K42: 140001^929|140002^649|130002^107
A43: 71042 | B43: 140001 | C43: 1018 | D43: 140001^1018 | E43: 140002 | F43: 711 | G43: 140002^711 | H43: 130002 | I43: 113 | J43: 130002^113 | K43: 140001^1018|140002^711|130002^113
A44: 71043 | B44: 140001 | C44: 1107 | D44: 140001^1107 | E44: 140002 | F44: 773 | G44: 140002^773 | H44: 130002 | I44: 119 | J44: 130002^119 | K44: 140001^1107|140002^773|130002^119
A45: 71044 | B45: 140001 | C45: 1195 | D45: 140001^1195 | E45: 140002 | F45: 835 | G45: 140002^835 | H45: 130002 | I45: 125 | J45: 130002^125 | K45: 140001^1195|140002^835|130002^125
A46: 71045 | B46: 140001 | C46: 1284 | D46: 140001^1284 | E46: 140002 | F46: 897 | G46: 140002^897 | H46: 130002 | I46: 131 | J46: 130002^131 | K46: 140001^1284|140002^897|130002^131
A47: 71046 | B47: 140001 | C47: 1373 | D47: 140001^1373 | E47: 140002 | F47: 959 | G47: 140002^959 | H47: 130002 | I47: 137 | J47: 130002^137 | K47: 140001^1373|140002^959|130002^137
A48: 71047 | B48: 140001 | C48: 1462 | D48: 140001^1462 | E48: 140002 | F48: 1021 | G48: 140002^1021 | H48: 130002 | I48: 143 | J48: 130002^143 | K48: 140001^1462|140002^1021|130002^143
A49: 71048 | B49: 140001 | C49: 1550 | D49: 140001^1550 | E49: 140002 | F49: 1083 | G49: 140002^1083 | H49: 130002 | I49: 149 | J49: 130002^149 | K49: 140001^1550|140002^1083|130002^149
A50: 71049 | B50: 140001 | C50: 1639 | D50: 140001^1639 | E50: 140002 | F50: 1145 | G50: 140002^1145 | H50: 130002 | I50: 155 | J50: 130002^155 | K50: 140001^1639|140002^1145|130002^155
A51: 71050 | B51: 140001 | C51: 1728 | D51: 140001^1728 | E51: 140002 | F51: 1207 | G51: 140002^1207 | H51: 130002 | I51: 161 | J51: 130002^161 | K51: 140001^1728|140002^1207|130002^161
A52: 71051 | B52: 140001 | C52: 1866 | D52: 140001^1866 | E52: 140002 | F52: 1303 | G52: 140002^1303 | H52: 130002 | I52: 168 | J52: 130002^168 | K52: 140001^1866|140002^1303|130002^168
A53: 71052 | B53: 140001 | C53: 2003 | D53: 140001^2003 | E53: 140002 | F53: 1399 | G53: 140002^1399 | H53: 130002 | I53: 175 | J53: 130002^175 | K53: 140001^2003|140002^1399|130002^175
A54: 71053 | B54: 140001 | C54: 2140 | D54: 140001^2140 | E54: 140002 | F54: 1495 | G54: 140002^1495 | H54: 130002 | I54: 182 | J54: 130002^182 | K54: 140001^2140|140002^1495|130002^182
A55: 71054 | B55: 140001 | C55: 2278 | D55: 140001^2278 | E55: 140002 | F55: 1591 | G55: 140002^1591 | H55: 130002 | I55: 189 | J55: 130002^189 | K55: 140001^2278|140002^1591|130002^189
A56: 71055 | B56: 140001 | C56: 2415 | D56: 140001^2415 | E56: 140002 | F56: 1687 | G56: 140002^1687 | H56: 130002 | I56: 196 | J56: 130002^196 | K56: 140001^2415|140002^1687|130002^196
A57: 71056 | B57: 140001 | C57: 2553 | D57: 140001^2553 | E57: 140002 | F57: 1783 | G57: 140002^1783 | H57: 130002 | I57: 203 | J57: 130002^203 | K57: 140001^2553|140002^1783|130002^203
A58: 71057 | B58: 140001 | C58: 2690 | D58: 140001^2690 | E58: 140002 | F58: 1879 | G58: 140002^1879 | H58: 130002 | I58: 210 | J58: 130002^210 | K58: 140001^2690|140002^1879|130002^210
A59: 71058 | B59: 140001 | C59: 2828 | D59: 140001^2828 | E59: 140002 | F59: 1975 | G59: 140002^1975 | H59: 130002 | I59: 217 | J59: 130002^217 | K59: 140001^2828|140002^1975|130002^217
A60: 71059 | B60: 140001 | C60: 2965 | D60: 140001^2965 | E60: 140002 | F60: 2071 | G60: 140002^2071 | H60: 130002 | I60: 224 | J60: 130002^224 | K60: 140001^2965|140002^2071|130002^224
A61: 71060 | B61: 140001 | C61: 3103 | D61: 140001^3103 | E61: 140002 | F61: 2167 | G61: 140002^2167 | H61: 130002 | I61: 231 | J61: 130002^231 | K61: 140001^3103|140002^2167|130002^231
A62: 71061 | B62: 140001 | C62: 3343 | D62: 140001^3343 | E62: 140002 | F62: 2335 | G62: 140002^2335 | H62: 130002 | I62: 240 | J62: 130002^240 | K62: 140001^3343|140002^2335|130002^240
A63: 71062 | B63: 140001 | C63: 3584 | D63: 140001^3584 | E63: 140002 | F63: 2503 | G63: 140002^2503 | H63: 130002 | I63: 249 | J63: 130002^249 | K63: 140001^3584|140002^2503|130002^249
A64: 71063 | B64: 140001 | C64: 3825 | D64: 140001^3825 | E64: 140002 | F64: 2671 | G64: 140002^2671 | H64: 130002 | I64: 258 | J64: 130002^258 | K64: 140001^3825|140002^2671|130002^258
A65: 71064 | B65: 140001 | C65: 4065 | D65: 140001^4065 | E65: 140002 | F65: 2839 | G65: 140002^2839 | H65: 130002 | I65: 267 | J65: 130002^267 | K65: 140001^4065|140002^2839|130002^267
A66: 71065 | B66: 140001 | C66: 4306 | D66: 140001^4306 | E66: 140002 | F66: 3007 | G66: 140002^3007 | H66: 130002 | I66: 276 | J66: 130002^276 | K66: 140001^4306|140002^3007|130002^276
A67: 71066 | B67: 140001 | C67: =FLOOR(F67*1.4321,1) -> 4546 | D67: =_xlfn.TEXTJOIN("^",,B67:C67) -> 140001^4546 | E67: 140002 | F67: 3175 | G67: =_xlfn.TEXTJOIN("^",,E67:F67) -> 140002^3175 | H67: 130002 | I67: 285 | J67: =_xlfn.TEXTJOIN("^",,H67:I67) -> 130002^285 | K67: =_xlfn.TEXTJOIN("|",,D67,G67,J67) -> 140001^4546|140002^3175|130002^285
A68: 71067 | B68: 140001 | C68: 4787 | D68: 140001^4787 | E68: 140002 | F68: 3343 | G68: 140002^3343 | H68: 130002 | I68: 294 | J68: 130002^294 | K68: 140001^4787|140002^3343|130002^294
A69: 71068 | B69: 140001 | C69: 5028 | D69: 140001^5028 | E69: 140002 | F69: 3511 | G69: 140002^3511 | H69: 130002 | I69: 303 | J69: 130002^303 | K69: 140001^5028|140002^3511|130002^303
A70: 71069 | B70: 140001 | C70: 5268 | D70: 140001^5268 | E70: 140002 | F70: 3679 | G70: 140002^3679 | H70: 130002 | I70: 312 | J70: 130002^312 | K70: 140001^5268|140002^3679|130002^312
A71: 71070 | B71: 140001 | C71: 5494 | D71: 140001^5494 | E71: 140002 | F71: 3837 | G71: 140002^3837 | H71: 130002 | I71: 321 | J71: 130002^321 | K71: 140001^5494|140002^3837|130002^321
A72: 71071 | B72: 140001 | C72: 5721 | D72: 140001^5721 | E72: 140002 | F72: 3995 | G72: 140002^3995 | H72: 130002 | I72: 333 | J72: 130002^333 | K72: 140001^5721|140002^3995|130002^333
A73: 71072 | B73: 140001 | C73: 5947 | D73: 140001^5947 | E73: 140002 | F73: 4153 | G73: 140002^4153 | H73: 130002 | I73: 345 | J73: 130002^345 | K73: 140001^5947|140002^4153|130002^345
A74: 71073 | B74: 140001 | C74: 6173 | D74: 140001^6173 | E74: 140002 | F74: 4311 | G74: 140002^4311 | H74: 130002 | I74: 357 | J74: 130002^357 | K74: 140001^6173|140002^4311|130002^357
A75: 71074 | B75: 140001 | C75: 6400 | D75: 140001^6400 | E75: 140002 | F75: 4469 | G75: 140002^4469 | H75: 130002 | I75: 369 | J75: 130002^369 | K75: 140001^6400|140002^4469|130002^369
A76: 71075 | B76: 140001 | C76: 6626 | D76: 140001^6626 | E76: 140002 | F76: 4627 | G76: 140002^4627 | H76: 130002 | I76: 381 | J76: 130002^381 | K76: 140001^6626|140002^4627|130002^381
A77: 71076 | B77: 140001 | C77: 6852 | D77: 140001^6852 | E77: 140002 | F77: 4785 | G77: 140002^4785 | H77: 130002 | I77: 393 | J77: 130002^393 | K77: 140001^6852|140002^4785|130002^393
A78: 71077 | B78: 140001 | C78: 7078 | D78: 140001^7078 | E78: 140002 | F78: 4943 | G78: 140002^4943 | H78: 130002 | I78: 405 | J78: 130002^405 | K78: 140001^7078|140002^4943|130002^405
A79: 71078 | B79: 140001 | C79: 7305 | D79: 140001^7305 | E79: 140002 | F79: 5101 | G79: 140002^5101 | H79: 130002 | I79: 417 | J79: 130002^417 | K79: 140001^7305|140002^5101|130002^417
A80: 71079 | B80: 140001 | C80: 7531 | D80: 140001^7531 | E80: 140002 | F80: 5259 | G80: 140002^5259 | H80: 130002 | I80: 429 | J80: 130002^429 | K80: 140001^7531|140002^5259|130002^429
A81: 71080 | B81: 140001 | C81: 7757 | D81: 140001^7757 | E81: 140002 | F81: 5417 | G81: 140002^5417 | H81: 130002 | I81: 441 | J81: 130002^441 | K81: 140001^7757|140002^5417|130002^441
A82: 71081 | B82: 140001 | C82: 8313 | D82: 140001^8313 | E82: 140002 | F82: 5805 | G82: 140002^5805 | H82: 130002 | I82: 456 | J82: 130002^456 | K82: 140001^8313|140002^5805|130002^456
A83: 71082 | B83: 140001 | C83: 8868 | D83: 140001^8868 | E83: 140002 | F83: 6193 | G83: 140002^6193 | H83: 130002 | I83: 471 | J83: 130002^471 | K83: 140001^8868|140002^6193|130002^471
A84: 71083 | B84: 140001 | C84: 9424 | D84: 140001^9424 | E84: 140002 | F84: 6581 | G84: 140002^6581 | H84: 130002 | I84: 486 | J84: 130002^486 | K84: 140001^9424|140002^6581|130002^486
A85: 71084 | B85: 140001 | C85: 9980 | D85: 140001^9980 | E85: 140002 | F85: 6969 | G85: 140002^6969 | H85: 130002 | I85: 501 | J85: 130002^501 | K85: 140001^9980|140002^6969|130002^501
A86: 71085 | B86: 140001 | C86: 10535 | D86: 140001^10535 | E86: 140002 | F86: 7357 | G86: 140002^7357 | H86: 130002 | I86: 516 | J86: 130002^516 | K86: 140001^10535|140002^7357|130002^516
A87: 71086 | B87: 140001 | C87: 11091 | D87: 140001^11091 | E87: 140002 | F87: 7745 | G87: 140002^7745 | H87: 130002 | I87: 531 | J87: 130002^531 | K87: 140001^11091|140002^7745|130002^531
A88: 71087 | B88: 140001 | C88: 11647 | D88: 140001^11647 | E88: 140002 | F88: 8133 | G88: 140002^8133 | H88: 130002 | I88: 546 | J88: 130002^546 | K88: 140001^11647|140002^8133|130002^546
A89: 71088 | B89: 140001 | C89: 12202 | D89: 140001^12202 | E89: 140002 | F89: 8521 | G89: 140002^8521 | H89: 130002 | I89: 561 | J89: 130002^561 | K89: 140001^12202|140002^8521|130002^561
A90: 71089 | B90: 140001 | C90: 12758 | D90: 140001^12758 | E90: 140002 | F90: 8909 | G90: 140002^8909 | H90: 130002 | I90: 576 | J90: 130002^576 | K90: 140001^12758|140002^8909|130002^576
A91: 71090 | B91: 140001 | C91: 13314 | D91: 140001^13314 | E91: 140002 | F91: 9297 | G91: 140002^9297 | H91: 130002 | I91: 591 | J91: 130002^591 | K91: 140001^13314|140002^9297|130002^591
A92: 71091 | B92: 140001 | C92: 13985 | D92: 140001^13985 | E92: 140002 | F92: 9766 | G92: 140002^9766 | H92: 130002 | I92: 609 | J92: 130002^609 | K92: 140001^13985|140002^9766|130002^609
A93: 71092 | B93: 140001 | C93: 14657 | D93: 140001^14657 | E93: 140002 | F93: 10235 | G93: 140002^10235 | H93: 130002 | I93: 627 | J93: 130002^627 | K93: 140001^14657|140002^10235|130002^627
A94: 71093 | B94: 140001 | C94: 15329 | D94: 140001^15329 | E94: 140002 | F94: 10704 | G94: 140002^10704 | H94: 130002 | I94: 645 | J94: 130002^645 | K94: 140001^15329|140002^10704|130002^645
A95: 71094 | B95: 140001 | C95: 16000 | D95: 140001^16000 | E95: 140002 | F95: 11173 | G95: 140002^11173 | H95: 130002 | I95: 663 | J95: 130002^663 | K95: 140001^16000|140002^11173|130002^663
A96: 71095 | B96: 140001 | C96: 16672 | D96: 140001^16672 | E96: 140002 | F96: 11642 | G96: 140002^11642 | H96: 130002 | I96: 681 | J96: 130002^681 | K96: 140001^16672|140002^11642|130002^681
A97: 71096 | B97: 140001 | C97: 17344 | D97: 140001^17344 | E97: 140002 | F97: 12111 | G97: 140002^12111 | H97: 130002 | I97: 699 | J97: 130002^699 | K97: 140001^17344|140002^12111|130002^699
A98: 71097 | B98: 140001 | C98: 18015 | D98: 140001^18015 | E98: 140002 | F98: 12580 | G98: 140002^12580 | H98: 130002 | I98: 717 | J98: 130002^717 | K98: 140001^18015|140002^12580|130002^717
A99: 71098 | B99: 140001 | C99: 18687 | D99: 140001^18687 | E99: 140002 | F99: 13049 | G99: 140002^13049 | H99: 130002 | I99: 735 | J99: 130002^735 | K99: 140001^18687|140002^13049|130002^735
A100: 71099 | B100: 140001 | C100: 19359 | D100: 140001^19359 | E100: 140002 | F100: 13518 | G100: 140002^13518 | H100: 130002 | I100: 753 | J100: 130002^753 | K100: 140001^19359|140002^13518|130002^753
A101: 71100 | B101: 140001 | C101: 20030 | D101: 140001^20030 | E101: 140002 | F101: 13987 | G101: 140002^13987 | H101: 130002 | I101: 771 | J101: 130002^771 | K101: 140001^20030|140002^13987|130002^771
A102: 71101 | B102: 140001 | C102: 21000 | D102: 140001^21000 | E102: 140002 | F102: 14664 | G102: 140002^14664 | H102: 130002 | I102: 792 | J102: 130002^792 | K102: 140001^21000|140002^14664|130002^792
A103: 71102 | B103: 140001 | C103: 21969 | D103: 140001^21969 | E103: 140002 | F103: 15341 | G103: 140002^15341 | H103: 130002 | I103: 813 | J103: 130002^813 | K103: 140001^21969|140002^15341|130002^813
A104: 71103 | B104: 140001 | C104: 22939 | D104: 140001^22939 | E104: 140002 | F104: 16018 | G104: 140002^16018 | H104: 130002 | I104: 834 | J104: 130002^834 | K104: 140001^22939|140002^16018|130002^834
A105: 71104 | B105: 140001 | C105: 23908 | D105: 140001^23908 | E105: 140002 | F105: 16695 | G105: 140002^16695 | H105: 130002 | I105: 855 | J105: 130002^855 | K105: 140001^23908|140002^16695|130002^855
A106: 71105 | B106: 140001 | C106: 24878 | D106: 140001^24878 | E106: 140002 | F106: 17372 | G106: 140002^17372 | H106: 130002 | I106: 876 | J106: 130002^876 | K106: 140001^24878|140002^17372|130002^876
A107: 71106 | B107: 140001 | C107: 25847 | D107: 140001^25847 | E107: 140002 | F107: 18049 | G107: 140002^18049 | H107: 130002 | I107: 897 | J107: 130002^897 | K107: 140001^25847|140002^18049|130002^897
A108: 71107 | B108: 140001 | C108: 26817 | D108: 140001^26817 | E108: 140002 | F108: 18726 | G108: 140002^18726 | H108: 130002 | I108: 918 | J108: 130002^918 | K108: 140001^26817|140002^18726|130002^918
A109: 71108 | B109: 140001 | C109: 27787 | D109: 140001^27787 | E109: 140002 | F109: 19403 | G109: 140002^19403 | H109: 130002 | I109: 939 | J109: 130002^939 | K109: 140001^27787|140002^19403|130002^939
A110: 71109 | B110: 140001 | C110: 28756 | D110: 140001^28756 | E110: 140002 | F110: 20080 | G110: 140002^20080 | H110: 130002 | I110: 960 | J110: 130002^960 | K110: 140001^28756|140002^20080|130002^960
A111: 71110 | B111: 140001 | C111: 29726 | D111: 140001^29726 | E111: 140002 | F111: 20757 | G111: 140002^20757 | H111: 130002 | I111: 981 | J111: 130002^981 | K111: 140001^29726|140002^20757|130002^981
A112: 71111 | B112: 140001 | C112: 30695 | D112: 140001^30695 | E112: 140002 | F112: 21434 | G112: 140002^21434 | H112: 130002 | I112: 1005 | J112: 130002^1005 | K112: 140001^30695|140002^21434|130002^1005
A113: 71112 | B113: 140001 | C113: 31665 | D113: 140001^31665 | E113: 140002 | F113: 22111 | G113: 140002^22111 | H113: 130002 | I113: 1029 | J113: 130002^1029 | K113: 140001^31665|140002^22111|130002^1029
A114: 71113 | B114: 140001 | C114: 32634 | D114: 140001^32634 | E114: 140002 | F114: 22788 | G114: 140002^22788 | H114: 130002 | I114: 1053 | J114: 130002^1053 | K114: 140001^32634|140002^22788|130002^1053
A115: 71114 | B115: 140001 | C115: 33604 | D115: 140001^33604 | E115: 140002 | F115: 23465 | G115: 140002^23465 | H115: 130002 | I115: 1077 | J115: 130002^1077 | K115: 140001^33604|140002^23465|130002^1077
A116: 71115 | B116: 140001 | C116: 34573 | D116: 140001^34573 | E116: 140002 | F116: 24142 | G116: 140002^24142 | H116: 130002 | I116: 1101 | J116: 130002^1101 | K116: 140001^34573|140002^24142|130002^1101
A117: 71116 | B117: 140001 | C117: 35543 | D117: 140001^35543 | E117: 140002 | F117: 24819 | G117: 140002^24819 | H117: 130002 | I117: 1125 | J117: 130002^1125 | K117: 140001^35543|140002^24819|130002^1125
A118: 71117 | B118: 140001 | C118: 36512 | D118: 140001^36512 | E118: 140002 | F118: 25496 | G118: 140002^25496 | H118: 130002 | I118: 1149 | J118: 130002^1149 | K118: 140001^36512|140002^25496|130002^1149
A119: 71118 | B119: 140001 | C119: 37482 | D119: 140001^37482 | E119: 140002 | F119: 26173 | G119: 140002^26173 | H119: 130002 | I119: 1173 | J119: 130002^1173 | K119: 140001^37482|140002^26173|130002^1173
A120: 71119 | B120: 140001 | C120: 38451 | D120: 140001^38451 | E120: 140002 | F120: 26850 | G120: 140002^26850 | H120: 130002 | I120: 1197 | J120: 130002^1197 | K120: 140001^38451|140002^26850|130002^1197
A121: 71120 | B121: 140001 | C121: 39421 | D121: 140001^39421 | E121: 140002 | F121: 27527 | G121: 140002^27527 | H121: 130002 | I121: 1221 | J121: 130002^1221 | K121: 140001^39421|140002^27527|130002^1221
A122: 72001 | B122: 140001 | C122: 20 | D122: 140001^20 | E122: 140002 | F122: 28 | G122: 140002^28 | H122: 130002 | I122: 2 | J122: 130002^2 | K122: 140001^20|140002^28|130002^2
A123: 72002 | B123: 140001 | C123: 23 | D123: 140001^23 | E123: 140002 | F123: 32 | G123: 140002^32 | H123: 130002 | I123: 3 | J123: 130002^3 | K123: 140001^23|140002^32|130002^3
A124: 72003 | B124: 140001 | C124: 26 | D124: 140001^26 | E124: 140002 | F124: 37 | G124: 140002^37 | H124: 130002 | I124: 4 | J124: 130002^4 | K124: 140001^26|140002^37|130002^4
A125: 72004 | B125: 140001 | C125: 29 | D125: 140001^29 | E125: 140002 | F125: 41 | G125: 140002^41 | H125: 130002 | I125: 5 | J125: 130002^5 | K125: 140001^29|140002^41|130002^5
A126: 72005 | B126: 140001 | C126: 32 | D126: 140001^32 | E126: 140002 | F126: 45 | G126: 140002^45 | H126: 130002 | I126: 6 | J126: 130002^6 | K126: 140001^32|140002^45|130002^6
A127: 72006 | B127: 140001 | C127: 35 | D127: 140001^35 | E127: 140002 | F127: 50 | G127: 140002^50 | H127: 130002 | I127: 7 | J127: 130002^7 | K127: 140001^35|140002^50|130002^7
A128: 72007 | B128: 140001 | C128: 38 | D128: 140001^38 | E128: 140002 | F128: 54 | G128: 140002^54 | H128: 130002 | I128: 8 | J128: 130002^8 | K128: 140001^38|140002^54|130002^8
A129: 72008 | B129: 140001 | C129: 41 | D129: 140001^41 | E129: 140002 | F129: 58 | G129: 140002^58 | H129: 130002 | I129: 9 | J129: 130002^9 | K129: 140001^41|140002^58|130002^9
A130: 72009 | B130: 140001 | C130: 44 | D130: 140001^44 | E130: 140002 | F130: 63 | G130: 140002^63 | H130: 130002 | I130: 10 | J130: 130002^10 | K130: 140001^44|140002^63|130002^10
A131: 72010 | B131: 140001 | C131: 47 | D131: =_xlfn.TEXTJOIN("^",,B131:C131) -> 140001^47 | E131: 140002 | F131: 67 | G131: =_xlfn.TEXTJOIN("^",,E131:F131) -> 140002^67 | H131: 130002 | I131: 11 | J131: =_xlfn.TEXTJOIN("^",,H131:I131) -> 130002^11 | K131: =_xlfn.TEXTJOIN("|",,D131,G131,J131) -> 140001^47|140002^67|130002^11
A132: 72011 | B132: 140001 | C132: 58 | D132: 140001^58 | E132: 140002 | F132: 83 | G132: 140002^83 | H132: 130002 | I132: 13 | J132: 130002^13 | K132: 140001^58|140002^83|130002^13
A133: 72012 | B133: 140001 | C133: 69 | D133: 140001^69 | E133: 140002 | F133: 98 | G133: 140002^98 | H133: 130002 | I133: 15 | J133: 130002^15 | K133: 140001^69|140002^98|130002^15
A134: 72013 | B134: 140001 | C134: 80 | D134: 140001^80 | E134: 140002 | F134: 114 | G134: 140002^114 | H134: 130002 | I134: 17 | J134: 130002^17 | K134: 140001^80|140002^114|130002^17
A135: 72014 | B135: 140001 | C135: 91 | D135: 140001^91 | E135: 140002 | F135: 130 | G135: 140002^130 | H135: 130002 | I135: 19 | J135: 130002^19 | K135: 140001^91|140002^130|130002^19
A136: 72015 | B136: 140001 | C136: 102 | D136: 140001^102 | E136: 140002 | F136: 146 | G136: 140002^146 | H136: 130002 | I136: 21 | J136: 130002^21 | K136: 140001^102|140002^146|130002^21
A137: 72016 | B137: 140001 | C137: 113 | D137: 140001^113 | E137: 140002 | F137: 161 | G137: 140002^161 | H137: 130002 | I137: 23 | J137: 130002^23 | K137: 140001^113|140002^161|130002^23
A138: 72017 | B138: 140001 | C138: 124 | D138: 140001^124 | E138: 140002 | F138: 177 | G138: 140002^177 | H138: 130002 | I138: 25 | J138: 130002^25 | K138: 140001^124|140002^177|130002^25
A139: 72018 | B139: 140001 | C139: 135 | D139: 140001^135 | E139: 140002 | F139: 193 | G139: 140002^193 | H139: 130002 | I139: 27 | J139: 130002^27 | K139: 140001^135|140002^193|130002^27
A140: 72019 | B140: 140001 | C140: 146 | D140: 140001^146 | E140: 140002 | F140: 209 | G140: 140002^209 | H140: 130002 | I140: 29 | J140: 130002^29 | K140: 140001^146|140002^209|130002^29
A141: 72020 | B141: 140001 | C141: 157 | D141: 140001^157 | E141: 140002 | F141: 224 | G141: 140002^224 | H141: 130002 | I141: 31 | J141: 130002^31 | K141: 140001^157|140002^224|130002^31
A142: 72021 | B142: 140001 | C142: 175 | D142: 140001^175 | E142: 140002 | F142: 250 | G142: 140002^250 | H142: 130002 | I142: 34 | J142: 130002^34 | K142: 140001^175|140002^250|130002^34
A143: 72022 | B143: 140001 | C143: 193 | D143: 140001^193 | E143: 140002 | F143: 276 | G143: 140002^276 | H143: 130002 | I143: 37 | J143: 130002^37 | K143: 140001^193|140002^276|130002^37
A144: 72023 | B144: 140001 | C144: 211 | D144: 140001^211 | E144: 140002 | F144: 302 | G144: 140002^302 | H144: 130002 | I144: 40 | J144: 130002^40 | K144: 140001^211|140002^302|130002^40
A145: 72024 | B145: 140001 | C145: 229 | D145: 140001^229 | E145: 140002 | F145: 327 | G145: 140002^327 | H145: 130002 | I145: 43 | J145: 130002^43 | K145: 140001^229|140002^327|130002^43
A146: 72025 | B146: 140001 | C146: 247 | D146: 140001^247 | E146: 140002 | F146: 353 | G146: 140002^353 | H146: 130002 | I146: 46 | J146: 130002^46 | K146: 140001^247|140002^353|130002^46
A147: 72026 | B147: 140001 | C147: 265 | D147: 140001^265 | E147: 140002 | F147: 379 | G147: 140002^379 | H147: 130002 | I147: 49 | J147: 130002^49 | K147: 140001^265|140002^379|130002^49
A148: 72027 | B148: 140001 | C148: 283 | D148: 140001^283 | E148: 140002 | F148: 405 | G148: 140002^405 | H148: 130002 | I148: 52 | J148: 130002^52 | K148: 140001^283|140002^405|130002^52
A149: 72028 | B149: 140001 | C149: 301 | D149: 140001^301 | E149: 140002 | F149: 431 | G149: 140002^431 | H149: 130002 | I149: 55 | J149: 130002^55 | K149: 140001^301|140002^431|130002^55
A150: 72029 | B150: 140001 | C150: 319 | D150: 140001^319 | E150: 140002 | F150: 456 | G150: 140002^456 | H150: 130002 | I150: 58 | J150: 130002^58 | K150: 140001^319|140002^456|130002^58
A151: 72030 | B151: 140001 | C151: 337 | D151: 140001^337 | E151: 140002 | F151: 482 | G151: 140002^482 | H151: 130002 | I151: 61 | J151: 130002^61 | K151: 140001^337|140002^482|130002^61
A152: 72031 | B152: 140001 | C152: 362 | D152: 140001^362 | E152: 140002 | F152: 518 | G152: 140002^518 | H152: 130002 | I152: 65 | J152: 130002^65 | K152: 140001^362|140002^518|130002^65
A153: 72032 | B153: 140001 | C153: 387 | D153: 140001^387 | E153: 140002 | F153: 554 | G153: 140002^554 | H153: 130002 | I153: 69 | J153: 130002^69 | K153: 140001^387|140002^554|130002^69
A154: 72033 | B154: 140001 | C154: 412 | D154: 140001^412 | E154: 140002 | F154: 590 | G154: 140002^590 | H154: 130002 | I154: 73 | J154: 130002^73 | K154: 140001^412|140002^590|130002^73
A155: 72034 | B155: 140001 | C155: 437 | D155: 140001^437 | E155: 140002 | F155: 625 | G155: 140002^625 | H155: 130002 | I155: 77 | J155: 130002^77 | K155: 140001^437|140002^625|130002^77
A156: 72035 | B156: 140001 | C156: 462 | D156: 140001^462 | E156: 140002 | F156: 661 | G156: 140002^661 | H156: 130002 | I156: 81 | J156: 130002^81 | K156: 140001^462|140002^661|130002^81
A157: 72036 | B157: 140001 | C157: 487 | D157: 140001^487 | E157: 140002 | F157: 697 | G157: 140002^697 | H157: 130002 | I157: 85 | J157: 130002^85 | K157: 140001^487|140002^697|130002^85
A158: 72037 | B158: 140001 | C158: 512 | D158: 140001^512 | E158: 140002 | F158: 733 | G158: 140002^733 | H158: 130002 | I158: 89 | J158: 130002^89 | K158: 140001^512|140002^733|130002^89
A159: 72038 | B159: 140001 | C159: 537 | D159: 140001^537 | E159: 140002 | F159: 769 | G159: 140002^769 | H159: 130002 | I159: 93 | J159: 130002^93 | K159: 140001^537|140002^769|130002^93
A160: 72039 | B160: 140001 | C160: 562 | D160: 140001^562 | E160: 140002 | F160: 804 | G160: 140002^804 | H160: 130002 | I160: 97 | J160: 130002^97 | K160: 140001^562|140002^804|130002^97
A161: 72040 | B161: 140001 | C161: 587 | D161: 140001^587 | E161: 140002 | F161: 840 | G161: 140002^840 | H161: 130002 | I161: 101 | J161: 130002^101 | K161: 140001^587|140002^840|130002^101
A162: 72041 | B162: 140001 | C162: 649 | D162: 140001^649 | E162: 140002 | F162: 929 | G162: 140002^929 | H162: 130002 | I162: 107 | J162: 130002^107 | K162: 140001^649|140002^929|130002^107
A163: 72042 | B163: 140001 | C163: 711 | D163: 140001^711 | E163: 140002 | F163: 1018 | G163: 140002^1018 | H163: 130002 | I163: 113 | J163: 130002^113 | K163: 140001^711|140002^1018|130002^113
A164: 72043 | B164: 140001 | C164: 773 | D164: 140001^773 | E164: 140002 | F164: 1107 | G164: 140002^1107 | H164: 130002 | I164: 119 | J164: 130002^119 | K164: 140001^773|140002^1107|130002^119
A165: 72044 | B165: 140001 | C165: 835 | D165: 140001^835 | E165: 140002 | F165: 1195 | G165: 140002^1195 | H165: 130002 | I165: 125 | J165: 130002^125 | K165: 140001^835|140002^1195|130002^125
A166: 72045 | B166: 140001 | C166: 897 | D166: 140001^897 | E166: 140002 | F166: 1284 | G166: 140002^1284 | H166: 130002 | I166: 131 | J166: 130002^131 | K166: 140001^897|140002^1284|130002^131
A167: 72046 | B167: 140001 | C167: 959 | D167: 140001^959 | E167: 140002 | F167: 1373 | G167: 140002^1373 | H167: 130002 | I167: 137 | J167: 130002^137 | K167: 140001^959|140002^1373|130002^137
A168: 72047 | B168: 140001 | C168: 1021 | D168: 140001^1021 | E168: 140002 | F168: 1462 | G168: 140002^1462 | H168: 130002 | I168: 143 | J168: 130002^143 | K168: 140001^1021|140002^1462|130002^143
A169: 72048 | B169: 140001 | C169: 1083 | D169: 140001^1083 | E169: 140002 | F169: 1550 | G169: 140002^1550 | H169: 130002 | I169: 149 | J169: 130002^149 | K169: 140001^1083|140002^1550|130002^149
A170: 72049 | B170: 140001 | C170: 1145 | D170: 140001^1145 | E170: 140002 | F170: 1639 | G170: 140002^1639 | H170: 130002 | I170: 155 | J170: 130002^155 | K170: 140001^1145|140002^1639|130002^155
A171: 72050 | B171: 140001 | C171: 1207 | D171: 140001^1207 | E171: 140002 | F171: 1728 | G171: 140002^1728 | H171: 130002 | I171: 161 | J171: 130002^161 | K171: 140001^1207|140002^1728|130002^161
A172: 72051 | B172: 140001 | C172: 1303 | D172: 140001^1303 | E172: 140002 | F172: 1866 | G172: 140002^1866 | H172: 130002 | I172: 168 | J172: 130002^168 | K172: 140001^1303|140002^1866|130002^168
A173: 72052 | B173: 140001 | C173: 1399 | D173: 140001^1399 | E173: 140002 | F173: 2003 | G173: 140002^2003 | H173: 130002 | I173: 175 | J173: 130002^175 | K173: 140001^1399|140002^2003|130002^175
A174: 72053 | B174: 140001 | C174: 1495 | D174: 140001^1495 | E174: 140002 | F174: 2140 | G174: 140002^2140 | H174: 130002 | I174: 182 | J174: 130002^182 | K174: 140001^1495|140002^2140|130002^182
A175: 72054 | B175: 140001 | C175: 1591 | D175: 140001^1591 | E175: 140002 | F175: 2278 | G175: 140002^2278 | H175: 130002 | I175: 189 | J175: 130002^189 | K175: 140001^1591|140002^2278|130002^189
A176: 72055 | B176: 140001 | C176: 1687 | D176: 140001^1687 | E176: 140002 | F176: 2415 | G176: 140002^2415 | H176: 130002 | I176: 196 | J176: 130002^196 | K176: 140001^1687|140002^2415|130002^196
A177: 72056 | B177: 140001 | C177: 1783 | D177: 140001^1783 | E177: 140002 | F177: 2553 | G177: 140002^2553 | H177: 130002 | I177: 203 | J177: 130002^203 | K177: 140001^1783|140002^2553|130002^203
A178: 72057 | B178: 140001 | C178: 1879 | D178: 140001^1879 | E178: 140002 | F178: 2690 | G178: 140002^2690 | H178: 130002 | I178: 210 | J178: 130002^210 | K178: 140001^1879|140002^2690|130002^210
A179: 72058 | B179: 140001 | C179: 1975 | D179: 140001^1975 | E179: 140002 | F179: 2828 | G179: 140002^2828 | H179: 130002 | I179: 217 | J179: 130002^217 | K179: 140001^1975|140002^2828|130002^217
A180: 72059 | B180: 140001 | C180: 2071 | D180: 140001^2071 | E180: 140002 | F180: 2965 | G180: 140002^2965 | H180: 130002 | I180: 224 | J180: 130002^224 | K180: 140001^2071|140002^2965|130002^224
A181: 72060 | B181: 140001 | C181: 2167 | D181: 140001^2167 | E181: 140002 | F181: 3103 | G181: 140002^3103 | H181: 130002 | I181: 231 | J181: 130002^231 | K181: 140001^2167|140002^3103|130002^231
A182: 72061 | B182: 140001 | C182: 2335 | D182: 140001^2335 | E182: 140002 | F182: 3343 | G182: 140002^3343 | H182: 130002 | I182: 240 | J182: 130002^240 | K182: 140001^2335|140002^3343|130002^240
A183: 72062 | B183: 140001 | C183: 2503 | D183: 140001^2503 | E183: 140002 | F183: 3584 | G183: 140002^3584 | H183: 130002 | I183: 249 | J183: 130002^249 | K183: 140001^2503|140002^3584|130002^249
A184: 72063 | B184: 140001 | C184: 2671 | D184: 140001^2671 | E184: 140002 | F184: 3825 | G184: 140002^3825 | H184: 130002 | I184: 258 | J184: 130002^258 | K184: 140001^2671|140002^3825|130002^258
A185: 72064 | B185: 140001 | C185: 2839 | D185: 140001^2839 | E185: 140002 | F185: 4065 | G185: 140002^4065 | H185: 130002 | I185: 267 | J185: 130002^267 | K185: 140001^2839|140002^4065|130002^267
A186: 72065 | B186: 140001 | C186: 3007 | D186: 140001^3007 | E186: 140002 | F186: 4306 | G186: 140002^4306 | H186: 130002 | I186: 276 | J186: 130002^276 | K186: 140001^3007|140002^4306|130002^276
A187: 72066 | B187: 140001 | C187: 3175 | D187: 140001^3175 | E187: 140002 | F187: 4546 | G187: 140002^4546 | H187: 130002 | I187: 285 | J187: 130002^285 | K187: 140001^3175|140002^4546|130002^285
A188: 72067 | B188: 140001 | C188: 3343 | D188: 140001^3343 | E188: 140002 | F188: 4787 | G188: 140002^4787 | H188: 130002 | I188: 294 | J188: 130002^294 | K188: 140001^3343|140002^4787|130002^294
A189: 72068 | B189: 140001 | C189: 3511 | D189: 140001^3511 | E189: 140002 | F189: 5028 | G189: 140002^5028 | H189: 130002 | I189: 303 | J189: 130002^303 | K189: 140001^3511|140002^5028|130002^303
A190: 72069 | B190: 140001 | C190: 3679 | D190: 140001^3679 | E190: 140002 | F190: 5268 | G190: 140002^5268 | H190: 130002 | I190: 312 | J190: 130002^312 | K190: 140001^3679|140002^5268|130002^312
A191: 72070 | B191: 140001 | C191: 3837 | D191: 140001^3837 | E191: 140002 | F191: 5494 | G191: 140002^5494 | H191: 130002 | I191: 321 | J191: 130002^321 | K191: 140001^3837|140002^5494|130002^321
A192: 72071 | B192: 140001 | C192: 3995 | D192: 140001^3995 | E192: 140002 | F192: 5721 | G192: 140002^5721 | H192: 130002 | I192: 333 | J192: 130002^333 | K192: 140001^3995|140002^5721|130002^333
A193: 72072 | B193: 140001 | C193: 4153 | D193: 140001^4153 | E193: 140002 | F193: 5947 | G193: 140002^5947 | H193: 130002 | I193: 345 | J193: 130002^345 | K193: 140001^4153|140002^5947|130002^345
A194: 72073 | B194: 140001 | C194: 4311 | D194: 140001^4311 | E194: 140002 | F194: 6173 | G194: 140002^6173 | H194: 130002 | I194: 357 | J194: 130002^357 | K194: 140001^4311|140002^6173|130002^357
A195: 72074 | B195: 140001 | C195: 4469 | D195: =_xlfn.TEXTJOIN("^",,B195:C195) -> 140001^4469 | E195: 140002 | F195: 6400 | G195: =_xlfn.TEXTJOIN("^",,E195:F195) -> 140002^6400 | H195: 130002 | I195: 369 | J195: =_xlfn.TEXTJOIN("^",,H195:I195) -> 130002^369 | K195: =_xlfn.TEXTJOIN("|",,D195,G195,J195) -> 140001^4469|140002^6400|130002^369
A196: 72075 | B196: 140001 | C196: 4627 | D196: 140001^4627 | E196: 140002 | F196: 6626 | G196: 140002^6626 | H196: 130002 | I196: 381 | J196: 130002^381 | K196: 140001^4627|140002^6626|130002^381
A197: 72076 | B197: 140001 | C197: 4785 | D197: 140001^4785 | E197: 140002 | F197: 6852 | G197: 140002^6852 | H197: 130002 | I197: 393 | J197: 130002^393 | K197: 140001^4785|140002^6852|130002^393
A198: 72077 | B198: 140001 | C198: 4943 | D198: 140001^4943 | E198: 140002 | F198: 7078 | G198: 140002^7078 | H198: 130002 | I198: 405 | J198: 130002^405 | K198: 140001^4943|140002^7078|130002^405
A199: 72078 | B199: 140001 | C199: 5101 | D199: 140001^5101 | E199: 140002 | F199: 7305 | G199: 140002^7305 | H199: 130002 | I199: 417 | J199: 130002^417 | K199: 140001^5101|140002^7305|130002^417
A200: 72079 | B200: 140001 | C200: 5259 | D200: 140001^5259 | E200: 140002 | F200: 7531 | G200: 140002^7531 | H200: 130002 | I200: 429 | J200: 130002^429 | K200: 140001^5259|140002^7531|130002^429
... 41 more rows
